Workbook

Sheet Control
C30: Numerical value
C31: Suggested formula
C32: Probabilistic parameters
C33: Data specified elsewhere
C34: Suggested formula edited

Sheet Infill
A1: SOURCE CONCENTRATIONS: Infill
A3: Source Data Options | B3: Source Type
A11: Target Standard
A13: Select which Quality Standard (defined on the Contaminants sheet) to apply
A14: Not Specified
A17: Source Geometry
A19: Infill_Source_length | B19: 207 | C19: m
A20: Infill_Source_width | B20: 246 | C20: m
A21: Infill_Source_area | B21: 51128 | C21: m2
A22: Infill_Source_thickness | C22: m
A23: Infill_Source_volume | B23: 975000 | C23: m3
A26: General Source Properties
A28: Infill_Source_field_capacity | B28: [-] | C28: 0.2
A29: Distribution | C29: constant
A30: Infill_Source_field_capacity_param1
A31: Infill_Source_field_capacity_param2
A32: Infill_Source_field_capacity_param3
A35: Infill_Source_porosity_total | B35: [-]
A36: Distribution | C36: constant
A37: Infill_Source_porosity_total_param1
A38: Infill_Source_porosity_total_param2
A39: Infill_Source_porosity_total_param3
A42: Infill_Source_porosity_water_filled | B42: [-]
A43: Distribution | C43: constant
A44: Infill_Source_porosity_water_filled_param1
A45: Infill_Source_porosity_water_filled_param2
A46: Infill_Source_porosity_water_filled_param3
A49: Infill_Source_porosity_air_filled | B49: [-] | C49: =Infill_Source_porosity_total - Infill_Source_porosity_water_filled -> 0
A50: Distribution | C50: constant
A51: Infill_Source_porosity_air_filled_param1
A52: Infill_Source_porosity_air_filled_param2
A53: Infill_Source_porosity_air_filled_param3
A56: Infill_Source_dry_bulk_density | B56: kg/m3
A57: Distribution | C57: constant
A58: Infill_Source_dry_bulk_density_param1
A59: Infill_Source_dry_bulk_density_param2
A60: Infill_Source_dry_bulk_density_param3
A63: Infill_Source_fraction_organic_carbon | B63: [-]
A64: Distribution | C64: constant
A65: Infill_Source_fraction_organic_carbon_param1
A66: Infill_Source_fraction_organic_carbon_param2
A67: Infill_Source_fraction_organic_carbon_param3
A71: Source Contaminant Information
A73: Source determinand names | C73: =IF( ISTEXT( (Contaminants_Source_determinand_names Contaminants_Species1)), (Contaminants_Source_determinand_names Contaminants_Species1), "Undefined" ) -> Hg | D73: =IF( ISTEXT( (Contaminants_Source_determinand_names Contaminants_Species2)), (Contaminants_Source_determinand_names Contaminants_Species2), "Undefined" ) -> Pb | E73: =IF( ISTEXT( (Contaminants_Source_determinand_names Contaminants_Species3)), (Contaminants_Source_determinand_names Contaminants_Species3), "Undefined" ) -> Benzene | F73: =IF( ISTEXT( (Contaminants_Source_determinand_names Contaminants_Species4)), (Contaminants_Source_determinand_names Contaminants_Species4), "Undefined" ) -> BaP | G73: =IF( ISTEXT( (Contaminants_Source_determinand_names Contaminants_Species5)), (Contaminants_Source_determinand_names Contaminants_Species5), "Undefined" ) -> Undefined | H73: =IF( ISTEXT( (Contaminants_Source_determinand_names Contaminants_Species6)), (Contaminants_Source_determinand_names Contaminants_Species6), "Undefined" ) -> Undefined | I73: =IF( ISTEXT( (Contaminants_Source_determinand_names Contaminants_Species7)), (Contaminants_Source_determinand_names Contaminants_Species7), "Undefined" ) -> Undefined | J73: =IF( ISTEXT( (Contaminants_Source_determinand_names Contaminants_Species8)), (Contaminants_Source_determinand_names Contaminants_Species8), "Undefined" ) -> Undefined
A75: Infill_Pore_water_concentration | B75: mg/L | C75: 0.01 | D75: 0.5 | E75: 6 | F75: 100
A76: Distribution | C76: constant | D76: constant | E76: constant | F76: constant | G76: constant | H76: constant | I76: constant | J76: constant
A77: Infill_Pore_water_concentration_param1
A78: Infill_Pore_water_concentration_param2
A79: Infill_Pore_water_concentration_param3
A82: Infill_Leaching_test_concentration | B82: mg/L
A83: Distribution | C83: constant | D83: constant | E83: constant | F83: constant | G83: constant | H83: constant | I83: constant | J83: constant
A84: Infill_Leaching_test_concentration_param1
A85: Infill_Leaching_test_concentration_param2
A86: Infill_Leaching_test_concentration_param3
A89: Infill_Soil_contaminant_concentration | B89: mg/kg
A90: Distribution | C90: constant | D90: constant | E90: constant | F90: constant | G90: constant | H90: constant | I90: constant | J90: constant
A91: Infill_Soil_contaminant_concentration_param1
A92: Infill_Soil_contaminant_concentration_param2
A93: Infill_Soil_contaminant_concentration_param3
A96: Infill_Source_solid_water_partitioning_coefficient_Kd | B96: L/kg | C96: =(Contaminants_Organic_Carbon_Water_Partition_Coefficient_Koc Contaminants_Species1) * ( Infill_Source_fraction_organic_carbon) -> 0 | D96: =(Contaminants_Organic_Carbon_Water_Partition_Coefficient_Koc Contaminants_Species2) * ( Infill_Source_fraction_organic_carbon) -> 0 | E96: =(Contaminants_Organic_Carbon_Water_Partition_Coefficient_Koc Contaminants_Species3) * ( Infill_Source_fraction_organic_carbon) -> 0 | F96: =(Contaminants_Organic_Carbon_Water_Partition_Coefficient_Koc Contaminants_Species4) * ( Infill_Source_fraction_organic_carbon) -> 0 | G96: =(Contaminants_Organic_Carbon_Water_Partition_Coefficient_Koc Contaminants_Species5) * ( Infill_Source_fraction_organic_carbon) -> 0 | H96: =(Contaminants_Organic_Carbon_Water_Partition_Coefficient_Koc Contaminants_Species6) * ( Infill_Source_fraction_organic_carbon) -> 0 | I96: =(Contaminants_Organic_Carbon_Water_Partition_Coefficient_Koc Contaminants_Species7) * ( Infill_Source_fraction_organic_carbon) -> 0 | J96: =(Contaminants_Organic_Carbon_Water_Partition_Coefficient_Koc Contaminants_Species8) * ( Infill_Source_fraction_organic_carbon) -> 0
A97: Distribution | C97: constant | D97: constant | E97: constant | F97: constant | G97: constant | H97: constant | I97: constant | J97: constant
A98: Infill_Source_solid_water_partitioning_coefficient_Kd_param1
A99: Infill_Source_solid_water_partitioning_coefficient_Kd_param2
A100: Infill_Source_solid_water_partitioning_coefficient_Kd_param3
A103: Infill_Initial_inventory | B103: kg | C103: =0.001 * (Infill_Pore_water_concentration) * (Infill_Source_field_capacity) * (Infill_Source_volume) -> 1.95 | D103: 97.5 | E103: 1170 | F103: 19500 | G103: 0 | H103: 0 | I103: 0 | J103: 0
A104: Distribution | C104: constant | D104: constant | E104: constant | F104: constant | G104: constant | H104: constant | I104: constant | J104: constant
A105: Infill_Initial_inventory_param1
A106: Infill_Initial_inventory_param2
A107: Infill_Initial_inventory_param3
A110: Infill_Kappa_slope_value_m | B110: kg/L
A111: Distribution | C111: constant | D111: constant | E111: constant | F111: constant | G111: constant | H111: constant | I111: constant | J111: constant
A112: Infill_Kappa_slope_value_m_param1
A113: Infill_Kappa_slope_value_m_param2
A114: Infill_Kappa_slope_value_m_param3
A117: Infill_Kappa_intercept_value_c | B117: kg/L
A118: Distribution | C118: constant | D118: constant | E118: constant | F118: constant | G118: constant | H118: constant | I118: constant | J118: constant
A119: Infill_Kappa_intercept_value_c_param1
A120: Infill_Kappa_intercept_value_c_param2
A121: Infill_Kappa_intercept_value_c_param3
A124: Infill_Kappa_Value | B124: kg/L | C124: =IF(AND(ISNUMBER(Infill_Kappa_slope_value_m),ISNUMBER(Infill_Kappa_intercept_value_c),ISNUMBER(Infill_Input_concentration)), IF(Infill_Input_concentration>0,MAX(0,Infill_Kappa_slope_value_m * LN(1000 * Infill_Input_concentration) + Infill_Kappa_intercept_value_c),""),"Not-used") -> Not-used | D124: Not-used | E124: Not-used | F124: Not-used | G124: Not-used | H124: Not-used | I124: Not-used | J124: Not-used
A125: Distribution | C125: constant | D125: constant | E125: constant | F125: constant | G125: constant | H125: constant | I125: constant | J125: constant
A126: Infill_Kappa_Value_param1
A127: Infill_Kappa_Value_param2
A128: Infill_Kappa_Value_param3
A131: Infill_Input_concentration | B131: mg/L | C131: =(Infill_Pore_water_concentration) -> 0.01 | D131: 0.5 | E131: 6 | F131: 100 | G131: 0 | H131: 0 | I131: 0 | J131: 0

Sheet Contaminants
A1: CONTAMINANT INFORMATION
D3: Species1 | E3: Species2 | F3: Species3 | G3: Species4 | H3: Species5 | I3: Species6 | J3: Species7 | K3: Species8
A4: Source determinand names | C4: 4 | D4: Hg | E4: Pb | F4: Benzene | G4: BaP
A7: Receptor Target Concentrations
B8: Name | D8: Values in mg/L
A9: Quality Standard 1 | B9: MRV | D9: 1e-05 | E9: 0.0002 | F9: 0.001 | G9: 5e-08
A10: Quality Standard 2
A11: Quality Standard 3
A12: Quality Standard 4
B13: Not Specified
A15: Generic Contaminant Properties
A17: Contaminants_Solubility | B17: mg/L
A18: Distribution | D18: constant | E18: constant | F18: constant | G18: constant | H18: constant | I18: constant | J18: constant | K18: constant
A19: Contaminants_Solubility_param1
A20: Contaminants_Solubility_param2
A21: Contaminants_Solubility_param3
A24: Contaminants_Henrys_Law_Constant | B24: [-]
A25: Distribution | D25: constant | E25: constant | F25: constant | G25: constant | H25: constant | I25: constant | J25: constant | K25: constant
A26: Contaminants_Henrys_Law_Constant_param1
A27: Contaminants_Henrys_Law_Constant_param2
A28: Contaminants_Henrys_Law_Constant_param3
A31: Contaminants_Organic_Carbon_Water_Partition_Coefficient_Koc | B31: L/kg | F31: 66 | G31: 1170000
A32: Distribution | D32: constant | E32: constant | F32: constant | G32: constant | H32: constant | I32: constant | J32: constant | K32: constant
A33: Contaminants_Organic_Carbon_Water_Partition_Coefficient_Koc_param1
A34: Contaminants_Organic_Carbon_Water_Partition_Coefficient_Koc_param2
A35: Contaminants_Organic_Carbon_Water_Partition_Coefficient_Koc_param3
A38: Contaminants_Free_Water_Diffusion_Coefficient | B38: m2/s | D38: 2e-09 | E38: 1e-09 | F38: 6.64e-10 | G38: 6.9e-10
A39: Distribution | D39: constant | E39: constant | F39: constant | G39: constant | H39: constant | I39: constant | J39: constant | K39: constant
A40: Contaminants_Free_Water_Diffusion_Coefficient_param1
A41: Contaminants_Free_Water_Diffusion_Coefficient_param2
A42: Contaminants_Free_Water_Diffusion_Coefficient_param3

Sheet Hydrogeology
A1: HYDROGEOLOGICAL UNITS
A3: Hydrogeological Units | C3: Sst Unsaturated | D3: Sst Saturated | E3: Geo Barrier
A5: Hydrogeology_Unit_Thickness | B5: m | C5: 3.5 | D5: 10 | E5: 1
A6: Distribution | C6: constant | D6: constant | E6: constant | F6: constant | G6: constant | H6: constant | I6: constant | J6: constant | K6: constant | L6: constant | M6: constant | N6: constant | O6: constant | P6: constant | Q6: constant | R6: constant
A7: Hydrogeology_Unit_Thickness_param1
A8: Hydrogeology_Unit_Thickness_param2
A9: Hydrogeology_Unit_Thickness_param3
A12: Hydrogeology_Log_Hydraulic_Conductivity | B12: log(m/s)
A13: Distribution | C13: constant | D13: constant | E13: constant | F13: constant | G13: constant | H13: constant | I13: constant | J13: constant | K13: constant | L13: constant | M13: constant | N13: constant | O13: constant | P13: constant | Q13: constant | R13: constant
A14: Hydrogeology_Log_Hydraulic_Conductivity_param1
A15: Hydrogeology_Log_Hydraulic_Conductivity_param2
A16: Hydrogeology_Log_Hydraulic_Conductivity_param3
A19: Hydrogeology_Hydraulic_Conductivity | B19: m/s | C19: 0.00014 | D19: 0.00014 | E19: 5e-09 | F19: =POWER(10, (Hydrogeology_Log_Hydraulic_Conductivity)) -> 1 | G19: 1 | H19: 1 | I19: 1 | J19: 1 | K19: 1 | L19: 1 | M19: 1 | N19: 1 | O19: 1 | P19: 1 | Q19: 1 | R19: 1
A20: Distribution | C20: constant | D20: constant | E20: constant | F20: constant | G20: constant | H20: constant | I20: constant | J20: constant | K20: constant | L20: constant | M20: constant | N20: constant | O20: constant | P20: constant | Q20: constant | R20: constant
A21: Hydrogeology_Hydraulic_Conductivity_param1
A22: Hydrogeology_Hydraulic_Conductivity_param2
A23: Hydrogeology_Hydraulic_Conductivity_param3
A26: Hydrogeology_Head | B26: m
A27: Distribution | C27: constant | D27: constant | E27: constant | F27: constant | G27: constant | H27: constant | I27: constant | J27: constant | K27: constant | L27: constant | M27: constant | N27: constant | O27: constant | P27: constant | Q27: constant | R27: constant
A28: Hydrogeology_Head_param1
A29: Hydrogeology_Head_param2
A30: Hydrogeology_Head_param3
A33: Hydrogeology_Hydraulic_Gradient | B33: [-] | C33: 1 | D33: 0.02 | E33: 1
A34: Distribution | C34: constant | D34: constant | E34: constant | F34: constant | G34: constant | H34: constant | I34: constant | J34: constant | K34: constant | L34: constant | M34: constant | N34: constant | O34: constant | P34: constant | Q34: constant | R34: constant
A35: Hydrogeology_Hydraulic_Gradient_param1
A36: Hydrogeology_Hydraulic_Gradient_param2
A37: Hydrogeology_Hydraulic_Gradient_param3
A40: Hydrogeology_Porosity | B40: [-] | C40: 0.27 | D40: 0.27 | E40: 0.4
A41: Distribution | C41: constant | D41: constant | E41: constant | F41: constant | G41: constant | H41: constant | I41: constant | J41: constant | K41: constant | L41: constant | M41: constant | N41: constant | O41: constant | P41: constant | Q41: constant | R41: constant
A42: Hydrogeology_Porosity_param1
A43: Hydrogeology_Porosity_param2
A44: Hydrogeology_Porosity_param3
A47: Hydrogeology_Velocity | B47: m/s | C47: =(Hydrogeology_Hydraulic_Conductivity) * (Hydrogeology_Hydraulic_Gradient) / (Hydrogeology_Porosity) -> 0.0005185185185 | D47: 1.037037037e-05 | E47: 1.25e-08
A48: Distribution | C48: constant | D48: constant | E48: constant | F48: constant | G48: constant | H48: constant | I48: constant | J48: constant | K48: constant | L48: constant | M48: constant | N48: constant | O48: constant | P48: constant | Q48: constant | R48: constant
A49: Hydrogeology_Velocity_param1
A50: Hydrogeology_Velocity_param2
A51: Hydrogeology_Velocity_param3
A54: Hydrogeology_Tortuosity | B54: [-] | C54: 5 | D54: 5 | E54: 5
A55: Distribution | C55: constant | D55: constant | E55: constant | F55: constant | G55: constant | H55: constant | I55: constant | J55: constant | K55: constant | L55: constant | M55: constant | N55: constant | O55: constant | P55: constant | Q55: constant | R55: constant
A56: Hydrogeology_Tortuosity_param1
A57: Hydrogeology_Tortuosity_param2
A58: Hydrogeology_Tortuosity_param3

Sheet Attenuation
A1: ATTENUATION PARAMETERS
A3: Hydrogeological Units | C3: Sst Unsaturated | D3: Sst Saturated | E3: Geo Barrier
A5: General properties
A7: Attenuation_Dry_bulk_density | B7: kg/m3 | C7: 2200 | D7: 2200 | E7: 1600
A8: Distribution | C8: constant | D8: constant | E8: constant | F8: constant | G8: constant | H8: constant | I8: constant | J8: constant | K8: constant | L8: constant | M8: constant | N8: constant | O8: constant | P8: constant | Q8: constant | R8: constant
A9: Attenuation_Dry_bulk_density_param1
A10: Attenuation_Dry_bulk_density_param2
A11: Attenuation_Dry_bulk_density_param3
A14: Attenuation_Fraction_organic_carbon | B14: [-] | C14: 0.001 | D14: 0.001 | E14: 0.01
A15: Distribution | C15: constant | D15: constant | E15: constant | F15: constant | G15: constant | H15: constant | I15: constant | J15: constant | K15: constant | L15: constant | M15: constant | N15: constant | O15: constant | P15: constant | Q15: constant | R15: constant
A16: Attenuation_Fraction_organic_carbon_param1
A17: Attenuation_Fraction_organic_carbon_param2
A18: Attenuation_Fraction_organic_carbon_param3
A22: Contaminant specific parameters
A24: =IF((Contaminants_Source_determinand_names Contaminants_Species1)=0,"Undefined",(Contaminants_Source_determinand_names Contaminants_Species1)) -> Hg
A26: Attenuation_Partition_Coefficient_Kd_Species_1 | B26: L/kg | C26: 450 | D26: 450 | E26: 450 | F26: =(Attenuation_Fraction_organic_carbon) * (Contaminants_Organic_Carbon_Water_Partition_Coefficient_Koc Contaminants_Species1) -> 0 | G26: =(Attenuation_Fraction_organic_carbon) * (Contaminants_Organic_Carbon_Water_Partition_Coefficient_Koc Contaminants_Species1) -> 0 | H26: =(Attenuation_Fraction_organic_carbon) * (Contaminants_Organic_Carbon_Water_Partition_Coefficient_Koc Contaminants_Species1) -> 0 | I26: =(Attenuation_Fraction_organic_carbon) * (Contaminants_Organic_Carbon_Water_Partition_Coefficient_Koc Contaminants_Species1) -> 0 | J26: =(Attenuation_Fraction_organic_carbon) * (Contaminants_Organic_Carbon_Water_Partition_Coefficient_Koc Contaminants_Species1) -> 0 | K26: =(Attenuation_Fraction_organic_carbon) * (Contaminants_Organic_Carbon_Water_Partition_Coefficient_Koc Contaminants_Species1) -> 0 | L26: =(Attenuation_Fraction_organic_carbon) * (Contaminants_Organic_Carbon_Water_Partition_Coefficient_Koc Contaminants_Species1) -> 0 | M26: =(Attenuation_Fraction_organic_carbon) * (Contaminants_Organic_Carbon_Water_Partition_Coefficient_Koc Contaminants_Species1) -> 0 | N26: =(Attenuation_Fraction_organic_carbon) * (Contaminants_Organic_Carbon_Water_Partition_Coefficient_Koc Contaminants_Species1) -> 0 | O26: =(Attenuation_Fraction_organic_carbon) * (Contaminants_Organic_Carbon_Water_Partition_Coefficient_Koc Contaminants_Species1) -> 0 | P26: =(Attenuation_Fraction_organic_carbon) * (Contaminants_Organic_Carbon_Water_Partition_Coefficient_Koc Contaminants_Species1) -> 0 | Q26: =(Attenuation_Fraction_organic_carbon) * (Contaminants_Organic_Carbon_Water_Partition_Coefficient_Koc Contaminants_Species1) -> 0 | R26: =(Attenuation_Fraction_organic_carbon) * (Contaminants_Organic_Carbon_Water_Partition_Coefficient_Koc Contaminants_Species1) -> 0
A27: Distribution | C27: constant | D27: constant | E27: constant | F27: constant | G27: constant | H27: constant | I27: constant | J27: constant | K27: constant | L27: constant | M27: constant | N27: constant | O27: constant | P27: constant | Q27: constant | R27: constant
A28: Attenuation_Partition_Coefficient_Kd_Species_1_param1
A29: Attenuation_Partition_Coefficient_Kd_Species_1_param2
A30: Attenuation_Partition_Coefficient_Kd_Species_1_param3
A33: Attenuation_Retardation_Species_1 | B33: [-] | C33: =1 + 0.001 * (Attenuation_Partition_Coefficient_Kd_Species_1) * (Attenuation_Dry_bulk_density) / (Hydrogeology_Porosity Hydrogeology!$C:$C) -> 3667.666667 | D33: =1 + 0.001 * (Attenuation_Partition_Coefficient_Kd_Species_1) * (Attenuation_Dry_bulk_density) / (Hydrogeology_Porosity Hydrogeology!$D:$D) -> 3667.666667 | E33: =1 + 0.001 * (Attenuation_Partition_Coefficient_Kd_Species_1) * (Attenuation_Dry_bulk_density) / (Hydrogeology_Porosity Hydrogeology!$E:$E) -> 1801 | F33: =1 + 0.001 * (Attenuation_Partition_Coefficient_Kd_Species_1) * (Attenuation_Dry_bulk_density) / (Hydrogeology_Porosity Hydrogeology!$F:$F) ->  | G33: =1 + 0.001 * (Attenuation_Partition_Coefficient_Kd_Species_1) * (Attenuation_Dry_bulk_density) / (Hydrogeology_Porosity Hydrogeology!$G:$G) ->  | H33: =1 + 0.001 * (Attenuation_Partition_Coefficient_Kd_Species_1) * (Attenuation_Dry_bulk_density) / (Hydrogeology_Porosity Hydrogeology!$H:$H) ->  | I33: =1 + 0.001 * (Attenuation_Partition_Coefficient_Kd_Species_1) * (Attenuation_Dry_bulk_density) / (Hydrogeology_Porosity Hydrogeology!$I:$I) ->  | J33: =1 + 0.001 * (Attenuation_Partition_Coefficient_Kd_Species_1) * (Attenuation_Dry_bulk_density) / (Hydrogeology_Porosity Hydrogeology!$J:$J) ->  | K33: =1 + 0.001 * (Attenuation_Partition_Coefficient_Kd_Species_1) * (Attenuation_Dry_bulk_density) / (Hydrogeology_Porosity Hydrogeology!$K:$K) ->  | L33: =1 + 0.001 * (Attenuation_Partition_Coefficient_Kd_Species_1) * (Attenuation_Dry_bulk_density) / (Hydrogeology_Porosity Hydrogeology!$L:$L) ->  | M33: =1 + 0.001 * (Attenuation_Partition_Coefficient_Kd_Species_1) * (Attenuation_Dry_bulk_density) / (Hydrogeology_Porosity Hydrogeology!$M:$M) ->  | N33: =1 + 0.001 * (Attenuation_Partition_Coefficient_Kd_Species_1) * (Attenuation_Dry_bulk_density) / (Hydrogeology_Porosity Hydrogeology!$N:$N) ->  | O33: =1 + 0.001 * (Attenuation_Partition_Coefficient_Kd_Species_1) * (Attenuation_Dry_bulk_density) / (Hydrogeology_Porosity Hydrogeology!$O:$O) ->  | P33: =1 + 0.001 * (Attenuation_Partition_Coefficient_Kd_Species_1) * (Attenuation_Dry_bulk_density) / (Hydrogeology_Porosity Hydrogeology!$P:$P) ->  | Q33: =1 + 0.001 * (Attenuation_Partition_Coefficient_Kd_Species_1) * (Attenuation_Dry_bulk_density) / (Hydrogeology_Porosity Hydrogeology!$Q:$Q) ->  | R33: =1 + 0.001 * (Attenuation_Partition_Coefficient_Kd_Species_1) * (Attenuation_Dry_bulk_density) / (Hydrogeology_Porosity Hydrogeology!$R:$R) -> 
A34: Distribution | C34: constant | D34: constant | E34: constant | F34: constant | G34: constant | H34: constant | I34: constant | J34: constant | K34: constant | L34: constant | M34: constant | N34: constant | O34: constant | P34: constant | Q34: constant | R34: constant
A35: Attenuation_Retardation_Species_1_param1
A36: Attenuation_Retardation_Species_1_param2
A37: Attenuation_Retardation_Species_1_param3
A40: Attenuation_Half_Life_Species_1 | B40: days | C40: No Decay | D40: No Decay | E40: No Decay | F40: No Decay | G40: No Decay | H40: No Decay | I40: No Decay | J40: No Decay | K40: No Decay | L40: No Decay | M40: No Decay | N40: No Decay | O40: No Decay | P40: No Decay | Q40: No Decay | R40: No Decay
A41: Distribution | C41: constant | D41: constant | E41: constant | F41: constant | G41: constant | H41: constant | I41: constant | J41: constant | K41: constant | L41: constant | M41: constant | N41: constant | O41: constant | P41: constant | Q41: constant | R41: constant
A42: Attenuation_Half_Life_Species_1_param1
A43: Attenuation_Half_Life_Species_1_param2
A44: Attenuation_Half_Life_Species_1_param3
A47: Attenuation_Decay_Coefficient_Species_1 | B47: 1/s | C47: =IF((Attenuation_Half_Life_Species_1)<>"No Decay", LN(2) / ((Attenuation_Half_Life_Species_1) * s_per_day),0) -> 0 | D47: 0 | E47: 0 | F47: 0 | G47: 0 | H47: 0 | I47: 0 | J47: 0 | K47: 0 | L47: 0 | M47: 0 | N47: 0 | O47: 0 | P47: 0 | Q47: 0 | R47: 0
A48: Distribution | C48: constant | D48: constant | E48: constant | F48: constant | G48: constant | H48: constant | I48: constant | J48: constant | K48: constant | L48: constant | M48: constant | N48: constant | O48: constant | P48: constant | Q48: constant | R48: constant
A49: Attenuation_Decay_Coefficient_Species_1_param1
A50: Attenuation_Decay_Coefficient_Species_1_param2
A51: Attenuation_Decay_Coefficient_Species_1_param3
A54: =IF((Contaminants_Source_determinand_names Contaminants_Species2)=0,"Undefined",(Contaminants_Source_determinand_names Contaminants_Species2)) -> Pb
A56: Attenuation_Partition_Coefficient_Kd_Species_2 | B56: L/kg | C56: 220 | D56: 220 | E56: 220 | F56: =(Attenuation_Fraction_organic_carbon) * (Contaminants_Organic_Carbon_Water_Partition_Coefficient_Koc Contaminants_Species2) -> 0 | G56: =(Attenuation_Fraction_organic_carbon) * (Contaminants_Organic_Carbon_Water_Partition_Coefficient_Koc Contaminants_Species2) -> 0 | H56: =(Attenuation_Fraction_organic_carbon) * (Contaminants_Organic_Carbon_Water_Partition_Coefficient_Koc Contaminants_Species2) -> 0 | I56: =(Attenuation_Fraction_organic_carbon) * (Contaminants_Organic_Carbon_Water_Partition_Coefficient_Koc Contaminants_Species2) -> 0 | J56: =(Attenuation_Fraction_organic_carbon) * (Contaminants_Organic_Carbon_Water_Partition_Coefficient_Koc Contaminants_Species2) -> 0 | K56: =(Attenuation_Fraction_organic_carbon) * (Contaminants_Organic_Carbon_Water_Partition_Coefficient_Koc Contaminants_Species2) -> 0 | L56: =(Attenuation_Fraction_organic_carbon) * (Contaminants_Organic_Carbon_Water_Partition_Coefficient_Koc Contaminants_Species2) -> 0 | M56: =(Attenuation_Fraction_organic_carbon) * (Contaminants_Organic_Carbon_Water_Partition_Coefficient_Koc Contaminants_Species2) -> 0 | N56: =(Attenuation_Fraction_organic_carbon) * (Contaminants_Organic_Carbon_Water_Partition_Coefficient_Koc Contaminants_Species2) -> 0 | O56: =(Attenuation_Fraction_organic_carbon) * (Contaminants_Organic_Carbon_Water_Partition_Coefficient_Koc Contaminants_Species2) -> 0 | P56: =(Attenuation_Fraction_organic_carbon) * (Contaminants_Organic_Carbon_Water_Partition_Coefficient_Koc Contaminants_Species2) -> 0 | Q56: =(Attenuation_Fraction_organic_carbon) * (Contaminants_Organic_Carbon_Water_Partition_Coefficient_Koc Contaminants_Species2) -> 0 | R56: =(Attenuation_Fraction_organic_carbon) * (Contaminants_Organic_Carbon_Water_Partition_Coefficient_Koc Contaminants_Species2) -> 0
A57: Distribution | C57: constant | D57: constant | E57: constant | F57: constant | G57: constant | H57: constant | I57: constant | J57: constant | K57: constant | L57: constant | M57: constant | N57: constant | O57: constant | P57: constant | Q57: constant | R57: constant
A58: Attenuation_Partition_Coefficient_Kd_Species_2_param1
A59: Attenuation_Partition_Coefficient_Kd_Species_2_param2
A60: Attenuation_Partition_Coefficient_Kd_Species_2_param3
A63: Attenuation_Retardation_Species_2 | B63: [-] | C63: =1 + 0.001 * (Attenuation_Partition_Coefficient_Kd_Species_2) * (Attenuation_Dry_bulk_density) / (Hydrogeology_Porosity Hydrogeology!$C:$C) -> 1793.592593 | D63: =1 + 0.001 * (Attenuation_Partition_Coefficient_Kd_Species_2) * (Attenuation_Dry_bulk_density) / (Hydrogeology_Porosity Hydrogeology!$D:$D) -> 1793.592593 | E63: =1 + 0.001 * (Attenuation_Partition_Coefficient_Kd_Species_2) * (Attenuation_Dry_bulk_density) / (Hydrogeology_Porosity Hydrogeology!$E:$E) -> 881 | F63: =1 + 0.001 * (Attenuation_Partition_Coefficient_Kd_Species_2) * (Attenuation_Dry_bulk_density) / (Hydrogeology_Porosity Hydrogeology!$F:$F) ->  | G63: =1 + 0.001 * (Attenuation_Partition_Coefficient_Kd_Species_2) * (Attenuation_Dry_bulk_density) / (Hydrogeology_Porosity Hydrogeology!$G:$G) ->  | H63: =1 + 0.001 * (Attenuation_Partition_Coefficient_Kd_Species_2) * (Attenuation_Dry_bulk_density) / (Hydrogeology_Porosity Hydrogeology!$H:$H) ->  | I63: =1 + 0.001 * (Attenuation_Partition_Coefficient_Kd_Species_2) * (Attenuation_Dry_bulk_density) / (Hydrogeology_Porosity Hydrogeology!$I:$I) ->  | J63: =1 + 0.001 * (Attenuation_Partition_Coefficient_Kd_Species_2) * (Attenuation_Dry_bulk_density) / (Hydrogeology_Porosity Hydrogeology!$J:$J) ->  | K63: =1 + 0.001 * (Attenuation_Partition_Coefficient_Kd_Species_2) * (Attenuation_Dry_bulk_density) / (Hydrogeology_Porosity Hydrogeology!$K:$K) ->  | L63: =1 + 0.001 * (Attenuation_Partition_Coefficient_Kd_Species_2) * (Attenuation_Dry_bulk_density) / (Hydrogeology_Porosity Hydrogeology!$L:$L) ->  | M63: =1 + 0.001 * (Attenuation_Partition_Coefficient_Kd_Species_2) * (Attenuation_Dry_bulk_density) / (Hydrogeology_Porosity Hydrogeology!$M:$M) ->  | N63: =1 + 0.001 * (Attenuation_Partition_Coefficient_Kd_Species_2) * (Attenuation_Dry_bulk_density) / (Hydrogeology_Porosity Hydrogeology!$N:$N) ->  | O63: =1 + 0.001 * (Attenuation_Partition_Coefficient_Kd_Species_2) * (Attenuation_Dry_bulk_density) / (Hydrogeology_Porosity Hydrogeology!$O:$O) ->  | P63: =1 + 0.001 * (Attenuation_Partition_Coefficient_Kd_Species_2) * (Attenuation_Dry_bulk_density) / (Hydrogeology_Porosity Hydrogeology!$P:$P) ->  | Q63: =1 + 0.001 * (Attenuation_Partition_Coefficient_Kd_Species_2) * (Attenuation_Dry_bulk_density) / (Hydrogeology_Porosity Hydrogeology!$Q:$Q) ->  | R63: =1 + 0.001 * (Attenuation_Partition_Coefficient_Kd_Species_2) * (Attenuation_Dry_bulk_density) / (Hydrogeology_Porosity Hydrogeology!$R:$R) -> 
A64: Distribution | C64: constant | D64: constant | E64: constant | F64: constant | G64: constant | H64: constant | I64: constant | J64: constant | K64: constant | L64: constant | M64: constant | N64: constant | O64: constant | P64: constant | Q64: constant | R64: constant
A65: Attenuation_Retardation_Species_2_param1
A66: Attenuation_Retardation_Species_2_param2
A67: Attenuation_Retardation_Species_2_param3
A70: Attenuation_Half_Life_Species_2 | B70: days | C70: No Decay | D70: No Decay | E70: No Decay | F70: No Decay | G70: No Decay | H70: No Decay | I70: No Decay | J70: No Decay | K70: No Decay | L70: No Decay | M70: No Decay | N70: No Decay | O70: No Decay | P70: No Decay | Q70: No Decay | R70: No Decay
A71: Distribution | C71: constant | D71: constant | E71: constant | F71: constant | G71: constant | H71: constant | I71: constant | J71: constant | K71: constant | L71: constant | M71: constant | N71: constant | O71: constant | P71: constant | Q71: constant | R71: constant
A72: Attenuation_Half_Life_Species_2_param1
A73: Attenuation_Half_Life_Species_2_param2
A74: Attenuation_Half_Life_Species_2_param3
A77: Attenuation_Decay_Coefficient_Species_2 | B77: 1/s | C77: =IF((Attenuation_Half_Life_Species_2)<>"No Decay", LN(2) / ((Attenuation_Half_Life_Species_2) * s_per_day),0) -> 0 | D77: 0 | E77: 0 | F77: 0 | G77: 0 | H77: 0 | I77: 0 | J77: 0 | K77: 0 | L77: 0 | M77: 0 | N77: 0 | O77: 0 | P77: 0 | Q77: 0 | R77: 0
A78: Distribution | C78: constant | D78: constant | E78: constant | F78: constant | G78: constant | H78: constant | I78: constant | J78: constant | K78: constant | L78: constant | M78: constant | N78: constant | O78: constant | P78: constant | Q78: constant | R78: constant
A79: Attenuation_Decay_Coefficient_Species_2_param1
A80: Attenuation_Decay_Coefficient_Species_2_param2
A81: Attenuation_Decay_Coefficient_Species_2_param3
A84: =IF((Contaminants_Source_determinand_names Contaminants_Species3)=0,"Undefined",(Contaminants_Source_determinand_names Contaminants_Species3)) -> Benzene
A86: Attenuation_Partition_Coefficient_Kd_Species_3 | B86: L/kg | C86: =(Attenuation_Fraction_organic_carbon) * (Contaminants_Organic_Carbon_Water_Partition_Coefficient_Koc Contaminants_Species3) -> 0.066 | D86: =(Attenuation_Fraction_organic_carbon) * (Contaminants_Organic_Carbon_Water_Partition_Coefficient_Koc Contaminants_Species3) -> 0.066 | E86: =(Attenuation_Fraction_organic_carbon) * (Contaminants_Organic_Carbon_Water_Partition_Coefficient_Koc Contaminants_Species3) -> 0.66 | F86: =(Attenuation_Fraction_organic_carbon) * (Contaminants_Organic_Carbon_Water_Partition_Coefficient_Koc Contaminants_Species3) -> 0 | G86: =(Attenuation_Fraction_organic_carbon) * (Contaminants_Organic_Carbon_Water_Partition_Coefficient_Koc Contaminants_Species3) -> 0 | H86: =(Attenuation_Fraction_organic_carbon) * (Contaminants_Organic_Carbon_Water_Partition_Coefficient_Koc Contaminants_Species3) -> 0 | I86: =(Attenuation_Fraction_organic_carbon) * (Contaminants_Organic_Carbon_Water_Partition_Coefficient_Koc Contaminants_Species3) -> 0 | J86: =(Attenuation_Fraction_organic_carbon) * (Contaminants_Organic_Carbon_Water_Partition_Coefficient_Koc Contaminants_Species3) -> 0 | K86: =(Attenuation_Fraction_organic_carbon) * (Contaminants_Organic_Carbon_Water_Partition_Coefficient_Koc Contaminants_Species3) -> 0 | L86: =(Attenuation_Fraction_organic_carbon) * (Contaminants_Organic_Carbon_Water_Partition_Coefficient_Koc Contaminants_Species3) -> 0 | M86: =(Attenuation_Fraction_organic_carbon) * (Contaminants_Organic_Carbon_Water_Partition_Coefficient_Koc Contaminants_Species3) -> 0 | N86: =(Attenuation_Fraction_organic_carbon) * (Contaminants_Organic_Carbon_Water_Partition_Coefficient_Koc Contaminants_Species3) -> 0 | O86: =(Attenuation_Fraction_organic_carbon) * (Contaminants_Organic_Carbon_Water_Partition_Coefficient_Koc Contaminants_Species3) -> 0 | P86: =(Attenuation_Fraction_organic_carbon) * (Contaminants_Organic_Carbon_Water_Partition_Coefficient_Koc Contaminants_Species3) -> 0 | Q86: =(Attenuation_Fraction_organic_carbon) * (Contaminants_Organic_Carbon_Water_Partition_Coefficient_Koc Contaminants_Species3) -> 0 | R86: =(Attenuation_Fraction_organic_carbon) * (Contaminants_Organic_Carbon_Water_Partition_Coefficient_Koc Contaminants_Species3) -> 0
A87: Distribution | C87: constant | D87: constant | E87: constant | F87: constant | G87: constant | H87: constant | I87: constant | J87: constant | K87: constant | L87: constant | M87: constant | N87: constant | O87: constant | P87: constant | Q87: constant | R87: constant
A88: Attenuation_Partition_Coefficient_Kd_Species_3_param1
A89: Attenuation_Partition_Coefficient_Kd_Species_3_param2
A90: Attenuation_Partition_Coefficient_Kd_Species_3_param3
A93: Attenuation_Retardation_Species_3 | B93: [-] | C93: =1 + 0.001 * (Attenuation_Partition_Coefficient_Kd_Species_3) * (Attenuation_Dry_bulk_density) / (Hydrogeology_Porosity Hydrogeology!$C:$C) -> 1.537777778 | D93: =1 + 0.001 * (Attenuation_Partition_Coefficient_Kd_Species_3) * (Attenuation_Dry_bulk_density) / (Hydrogeology_Porosity Hydrogeology!$D:$D) -> 1.537777778 | E93: =1 + 0.001 * (Attenuation_Partition_Coefficient_Kd_Species_3) * (Attenuation_Dry_bulk_density) / (Hydrogeology_Porosity Hydrogeology!$E:$E) -> 3.64 | F93: =1 + 0.001 * (Attenuation_Partition_Coefficient_Kd_Species_3) * (Attenuation_Dry_bulk_density) / (Hydrogeology_Porosity Hydrogeology!$F:$F) ->  | G93: =1 + 0.001 * (Attenuation_Partition_Coefficient_Kd_Species_3) * (Attenuation_Dry_bulk_density) / (Hydrogeology_Porosity Hydrogeology!$G:$G) ->  | H93: =1 + 0.001 * (Attenuation_Partition_Coefficient_Kd_Species_3) * (Attenuation_Dry_bulk_density) / (Hydrogeology_Porosity Hydrogeology!$H:$H) ->  | I93: =1 + 0.001 * (Attenuation_Partition_Coefficient_Kd_Species_3) * (Attenuation_Dry_bulk_density) / (Hydrogeology_Porosity Hydrogeology!$I:$I) ->  | J93: =1 + 0.001 * (Attenuation_Partition_Coefficient_Kd_Species_3) * (Attenuation_Dry_bulk_density) / (Hydrogeology_Porosity Hydrogeology!$J:$J) ->  | K93: =1 + 0.001 * (Attenuation_Partition_Coefficient_Kd_Species_3) * (Attenuation_Dry_bulk_density) / (Hydrogeology_Porosity Hydrogeology!$K:$K) ->  | L93: =1 + 0.001 * (Attenuation_Partition_Coefficient_Kd_Species_3) * (Attenuation_Dry_bulk_density) / (Hydrogeology_Porosity Hydrogeology!$L:$L) ->  | M93: =1 + 0.001 * (Attenuation_Partition_Coefficient_Kd_Species_3) * (Attenuation_Dry_bulk_density) / (Hydrogeology_Porosity Hydrogeology!$M:$M) ->  | N93: =1 + 0.001 * (Attenuation_Partition_Coefficient_Kd_Species_3) * (Attenuation_Dry_bulk_density) / (Hydrogeology_Porosity Hydrogeology!$N:$N) ->  | O93: =1 + 0.001 * (Attenuation_Partition_Coefficient_Kd_Species_3) * (Attenuation_Dry_bulk_density) / (Hydrogeology_Porosity Hydrogeology!$O:$O) ->  | P93: =1 + 0.001 * (Attenuation_Partition_Coefficient_Kd_Species_3) * (Attenuation_Dry_bulk_density) / (Hydrogeology_Porosity Hydrogeology!$P:$P) ->  | Q93: =1 + 0.001 * (Attenuation_Partition_Coefficient_Kd_Species_3) * (Attenuation_Dry_bulk_density) / (Hydrogeology_Porosity Hydrogeology!$Q:$Q) ->  | R93: =1 + 0.001 * (Attenuation_Partition_Coefficient_Kd_Species_3) * (Attenuation_Dry_bulk_density) / (Hydrogeology_Porosity Hydrogeology!$R:$R) -> 
A94: Distribution | C94: constant | D94: constant | E94: constant | F94: constant | G94: constant | H94: constant | I94: constant | J94: constant | K94: constant | L94: constant | M94: constant | N94: constant | O94: constant | P94: constant | Q94: constant | R94: constant
A95: Attenuation_Retardation_Species_3_param1
A96: Attenuation_Retardation_Species_3_param2
A97: Attenuation_Retardation_Species_3_param3
A100: Attenuation_Half_Life_Species_3 | B100: days | C100: 198 | D100: 198 | E100: 198 | F100: No Decay | G100: No Decay | H100: No Decay | I100: No Decay | J100: No Decay | K100: No Decay | L100: No Decay | M100: No Decay | N100: No Decay | O100: No Decay | P100: No Decay | Q100: No Decay | R100: No Decay
A101: Distribution | C101: constant | D101: constant | E101: constant | F101: constant | G101: constant | H101: constant | I101: constant | J101: constant | K101: constant | L101: constant | M101: constant | N101: constant | O101: constant | P101: constant | Q101: constant | R101: constant
A102: Attenuation_Half_Life_Species_3_param1
A103: Attenuation_Half_Life_Species_3_param2
A104: Attenuation_Half_Life_Species_3_param3
A107: Attenuation_Decay_Coefficient_Species_3 | B107: 1/s | C107: =IF((Attenuation_Half_Life_Species_3)<>"No Decay", LN(2) / ((Attenuation_Half_Life_Species_3) * s_per_day),0) -> 4.051786269e-08 | D107: 4.051786269e-08 | E107: 4.051786269e-08 | F107: 0 | G107: 0 | H107: 0 | I107: 0 | J107: 0 | K107: 0 | L107: 0 | M107: 0 | N107: 0 | O107: 0 | P107: 0 | Q107: 0 | R107: 0
A108: Distribution | C108: constant | D108: constant | E108: constant | F108: constant | G108: constant | H108: constant | I108: constant | J108: constant | K108: constant | L108: constant | M108: constant | N108: constant | O108: constant | P108: constant | Q108: constant | R108: constant
A109: Attenuation_Decay_Coefficient_Species_3_param1
A110: Attenuation_Decay_Coefficient_Species_3_param2
A111: Attenuation_Decay_Coefficient_Species_3_param3
A114: =IF((Contaminants_Source_determinand_names Contaminants_Species4)=0,"Undefined",(Contaminants_Source_determinand_names Contaminants_Species4)) -> BaP
A116: Attenuation_Partition_Coefficient_Kd_Species_4 | B116: L/kg | C116: =(Attenuation_Fraction_organic_carbon) * (Contaminants_Organic_Carbon_Water_Partition_Coefficient_Koc Contaminants_Species4) -> 1170 | D116: =(Attenuation_Fraction_organic_carbon) * (Contaminants_Organic_Carbon_Water_Partition_Coefficient_Koc Contaminants_Species4) -> 1170 | E116: =(Attenuation_Fraction_organic_carbon) * (Contaminants_Organic_Carbon_Water_Partition_Coefficient_Koc Contaminants_Species4) -> 11700 | F116: =(Attenuation_Fraction_organic_carbon) * (Contaminants_Organic_Carbon_Water_Partition_Coefficient_Koc Contaminants_Species4) -> 0 | G116: =(Attenuation_Fraction_organic_carbon) * (Contaminants_Organic_Carbon_Water_Partition_Coefficient_Koc Contaminants_Species4) -> 0 | H116: =(Attenuation_Fraction_organic_carbon) * (Contaminants_Organic_Carbon_Water_Partition_Coefficient_Koc Contaminants_Species4) -> 0 | I116: =(Attenuation_Fraction_organic_carbon) * (Contaminants_Organic_Carbon_Water_Partition_Coefficient_Koc Contaminants_Species4) -> 0 | J116: =(Attenuation_Fraction_organic_carbon) * (Contaminants_Organic_Carbon_Water_Partition_Coefficient_Koc Contaminants_Species4) -> 0 | K116: =(Attenuation_Fraction_organic_carbon) * (Contaminants_Organic_Carbon_Water_Partition_Coefficient_Koc Contaminants_Species4) -> 0 | L116: =(Attenuation_Fraction_organic_carbon) * (Contaminants_Organic_Carbon_Water_Partition_Coefficient_Koc Contaminants_Species4) -> 0 | M116: =(Attenuation_Fraction_organic_carbon) * (Contaminants_Organic_Carbon_Water_Partition_Coefficient_Koc Contaminants_Species4) -> 0 | N116: =(Attenuation_Fraction_organic_carbon) * (Contaminants_Organic_Carbon_Water_Partition_Coefficient_Koc Contaminants_Species4) -> 0 | O116: =(Attenuation_Fraction_organic_carbon) * (Contaminants_Organic_Carbon_Water_Partition_Coefficient_Koc Contaminants_Species4) -> 0 | P116: =(Attenuation_Fraction_organic_carbon) * (Contaminants_Organic_Carbon_Water_Partition_Coefficient_Koc Contaminants_Species4) -> 0 | Q116: =(Attenuation_Fraction_organic_carbon) * (Contaminants_Organic_Carbon_Water_Partition_Coefficient_Koc Contaminants_Species4) -> 0 | R116: =(Attenuation_Fraction_organic_carbon) * (Contaminants_Organic_Carbon_Water_Partition_Coefficient_Koc Contaminants_Species4) -> 0
A117: Distribution | C117: constant | D117: constant | E117: constant | F117: constant | G117: constant | H117: constant | I117: constant | J117: constant | K117: constant | L117: constant | M117: constant | N117: constant | O117: constant | P117: constant | Q117: constant | R117: constant
A118: Attenuation_Partition_Coefficient_Kd_Species_4_param1
A119: Attenuation_Partition_Coefficient_Kd_Species_4_param2
A120: Attenuation_Partition_Coefficient_Kd_Species_4_param3
A123: Attenuation_Retardation_Species_4 | B123: [-] | C123: =1 + 0.001 * (Attenuation_Partition_Coefficient_Kd_Species_4) * (Attenuation_Dry_bulk_density) / (Hydrogeology_Porosity Hydrogeology!$C:$C) -> 9534.333333 | D123: =1 + 0.001 * (Attenuation_Partition_Coefficient_Kd_Species_4) * (Attenuation_Dry_bulk_density) / (Hydrogeology_Porosity Hydrogeology!$D:$D) -> 9534.333333 | E123: =1 + 0.001 * (Attenuation_Partition_Coefficient_Kd_Species_4) * (Attenuation_Dry_bulk_density) / (Hydrogeology_Porosity Hydrogeology!$E:$E) -> 46801 | F123: =1 + 0.001 * (Attenuation_Partition_Coefficient_Kd_Species_4) * (Attenuation_Dry_bulk_density) / (Hydrogeology_Porosity Hydrogeology!$F:$F) ->  | G123: =1 + 0.001 * (Attenuation_Partition_Coefficient_Kd_Species_4) * (Attenuation_Dry_bulk_density) / (Hydrogeology_Porosity Hydrogeology!$G:$G) ->  | H123: =1 + 0.001 * (Attenuation_Partition_Coefficient_Kd_Species_4) * (Attenuation_Dry_bulk_density) / (Hydrogeology_Porosity Hydrogeology!$H:$H) ->  | I123: =1 + 0.001 * (Attenuation_Partition_Coefficient_Kd_Species_4) * (Attenuation_Dry_bulk_density) / (Hydrogeology_Porosity Hydrogeology!$I:$I) ->  | J123: =1 + 0.001 * (Attenuation_Partition_Coefficient_Kd_Species_4) * (Attenuation_Dry_bulk_density) / (Hydrogeology_Porosity Hydrogeology!$J:$J) ->  | K123: =1 + 0.001 * (Attenuation_Partition_Coefficient_Kd_Species_4) * (Attenuation_Dry_bulk_density) / (Hydrogeology_Porosity Hydrogeology!$K:$K) ->  | L123: =1 + 0.001 * (Attenuation_Partition_Coefficient_Kd_Species_4) * (Attenuation_Dry_bulk_density) / (Hydrogeology_Porosity Hydrogeology!$L:$L) ->  | M123: =1 + 0.001 * (Attenuation_Partition_Coefficient_Kd_Species_4) * (Attenuation_Dry_bulk_density) / (Hydrogeology_Porosity Hydrogeology!$M:$M) ->  | N123: =1 + 0.001 * (Attenuation_Partition_Coefficient_Kd_Species_4) * (Attenuation_Dry_bulk_density) / (Hydrogeology_Porosity Hydrogeology!$N:$N) ->  | O123: =1 + 0.001 * (Attenuation_Partition_Coefficient_Kd_Species_4) * (Attenuation_Dry_bulk_density) / (Hydrogeology_Porosity Hydrogeology!$O:$O) ->  | P123: =1 + 0.001 * (Attenuation_Partition_Coefficient_Kd_Species_4) * (Attenuation_Dry_bulk_density) / (Hydrogeology_Porosity Hydrogeology!$P:$P) ->  | Q123: =1 + 0.001 * (Attenuation_Partition_Coefficient_Kd_Species_4) * (Attenuation_Dry_bulk_density) / (Hydrogeology_Porosity Hydrogeology!$Q:$Q) ->  | R123: =1 + 0.001 * (Attenuation_Partition_Coefficient_Kd_Species_4) * (Attenuation_Dry_bulk_density) / (Hydrogeology_Porosity Hydrogeology!$R:$R) -> 
A124: Distribution | C124: constant | D124: constant | E124: constant | F124: constant | G124: constant | H124: constant | I124: constant | J124: constant | K124: constant | L124: constant | M124: constant | N124: constant | O124: constant | P124: constant | Q124: constant | R124: constant
A125: Attenuation_Retardation_Species_4_param1
A126: Attenuation_Retardation_Species_4_param2
A127: Attenuation_Retardation_Species_4_param3
A130: Attenuation_Half_Life_Species_4 | B130: days | C130: 830 | D130: 830 | E130: 830 | F130: No Decay | G130: No Decay | H130: No Decay | I130: No Decay | J130: No Decay | K130: No Decay | L130: No Decay | M130: No Decay | N130: No Decay | O130: No Decay | P130: No Decay | Q130: No Decay | R130: No Decay
A131: Distribution | C131: constant | D131: constant | E131: constant | F131: constant | G131: constant | H131: constant | I131: constant | J131: constant | K131: constant | L131: constant | M131: constant | N131: constant | O131: constant | P131: constant | Q131: constant | R131: constant
A132: Attenuation_Half_Life_Species_4_param1
A133: Attenuation_Half_Life_Species_4_param2
A134: Attenuation_Half_Life_Species_4_param3
A137: Attenuation_Decay_Coefficient_Species_4 | B137: 1/s | C137: =IF((Attenuation_Half_Life_Species_4)<>"No Decay", LN(2) / ((Attenuation_Half_Life_Species_4) * s_per_day),0) -> 9.665707002e-09 | D137: 9.665707002e-09 | E137: 9.665707002e-09 | F137: 0 | G137: 0 | H137: 0 | I137: 0 | J137: 0 | K137: 0 | L137: 0 | M137: 0 | N137: 0 | O137: 0 | P137: 0 | Q137: 0 | R137: 0
A138: Distribution | C138: constant | D138: constant | E138: constant | F138: constant | G138: constant | H138: constant | I138: constant | J138: constant | K138: constant | L138: constant | M138: constant | N138: constant | O138: constant | P138: constant | Q138: constant | R138: constant
A139: Attenuation_Decay_Coefficient_Species_4_param1
A140: Attenuation_Decay_Coefficient_Species_4_param2
A141: Attenuation_Decay_Coefficient_Species_4_param3
A144: =IF((Contaminants_Source_determinand_names Contaminants_Species5)=0,"Undefined",(Contaminants_Source_determinand_names Contaminants_Species5)) -> Undefined
A146: Attenuation_Partition_Coefficient_Kd_Species_5 | B146: L/kg | C146: =(Attenuation_Fraction_organic_carbon) * (Contaminants_Organic_Carbon_Water_Partition_Coefficient_Koc Contaminants_Species5) -> 0 | D146: =(Attenuation_Fraction_organic_carbon) * (Contaminants_Organic_Carbon_Water_Partition_Coefficient_Koc Contaminants_Species5) -> 0 | E146: =(Attenuation_Fraction_organic_carbon) * (Contaminants_Organic_Carbon_Water_Partition_Coefficient_Koc Contaminants_Species5) -> 0 | F146: =(Attenuation_Fraction_organic_carbon) * (Contaminants_Organic_Carbon_Water_Partition_Coefficient_Koc Contaminants_Species5) -> 0 | G146: =(Attenuation_Fraction_organic_carbon) * (Contaminants_Organic_Carbon_Water_Partition_Coefficient_Koc Contaminants_Species5) -> 0 | H146: =(Attenuation_Fraction_organic_carbon) * (Contaminants_Organic_Carbon_Water_Partition_Coefficient_Koc Contaminants_Species5) -> 0 | I146: =(Attenuation_Fraction_organic_carbon) * (Contaminants_Organic_Carbon_Water_Partition_Coefficient_Koc Contaminants_Species5) -> 0 | J146: =(Attenuation_Fraction_organic_carbon) * (Contaminants_Organic_Carbon_Water_Partition_Coefficient_Koc Contaminants_Species5) -> 0 | K146: =(Attenuation_Fraction_organic_carbon) * (Contaminants_Organic_Carbon_Water_Partition_Coefficient_Koc Contaminants_Species5) -> 0 | L146: =(Attenuation_Fraction_organic_carbon) * (Contaminants_Organic_Carbon_Water_Partition_Coefficient_Koc Contaminants_Species5) -> 0 | M146: =(Attenuation_Fraction_organic_carbon) * (Contaminants_Organic_Carbon_Water_Partition_Coefficient_Koc Contaminants_Species5) -> 0 | N146: =(Attenuation_Fraction_organic_carbon) * (Contaminants_Organic_Carbon_Water_Partition_Coefficient_Koc Contaminants_Species5) -> 0 | O146: =(Attenuation_Fraction_organic_carbon) * (Contaminants_Organic_Carbon_Water_Partition_Coefficient_Koc Contaminants_Species5) -> 0 | P146: =(Attenuation_Fraction_organic_carbon) * (Contaminants_Organic_Carbon_Water_Partition_Coefficient_Koc Contaminants_Species5) -> 0 | Q146: =(Attenuation_Fraction_organic_carbon) * (Contaminants_Organic_Carbon_Water_Partition_Coefficient_Koc Contaminants_Species5) -> 0 | R146: =(Attenuation_Fraction_organic_carbon) * (Contaminants_Organic_Carbon_Water_Partition_Coefficient_Koc Contaminants_Species5) -> 0
A147: Distribution | C147: constant | D147: constant | E147: constant | F147: constant | G147: constant | H147: constant | I147: constant | J147: constant | K147: constant | L147: constant | M147: constant | N147: constant | O147: constant | P147: constant | Q147: constant | R147: constant
A148: Attenuation_Partition_Coefficient_Kd_Species_5_param1
A149: Attenuation_Partition_Coefficient_Kd_Species_5_param2
A150: Attenuation_Partition_Coefficient_Kd_Species_5_param3
A153: Attenuation_Retardation_Species_5 | B153: [-] | C153: =1 + 0.001 * (Attenuation_Partition_Coefficient_Kd_Species_5) * (Attenuation_Dry_bulk_density) / (Hydrogeology_Porosity Hydrogeology!$C:$C) -> 1 | D153: =1 + 0.001 * (Attenuation_Partition_Coefficient_Kd_Species_5) * (Attenuation_Dry_bulk_density) / (Hydrogeology_Porosity Hydrogeology!$D:$D) -> 1 | E153: =1 + 0.001 * (Attenuation_Partition_Coefficient_Kd_Species_5) * (Attenuation_Dry_bulk_density) / (Hydrogeology_Porosity Hydrogeology!$E:$E) -> 1 | F153: =1 + 0.001 * (Attenuation_Partition_Coefficient_Kd_Species_5) * (Attenuation_Dry_bulk_density) / (Hydrogeology_Porosity Hydrogeology!$F:$F) ->  | G153: =1 + 0.001 * (Attenuation_Partition_Coefficient_Kd_Species_5) * (Attenuation_Dry_bulk_density) / (Hydrogeology_Porosity Hydrogeology!$G:$G) ->  | H153: =1 + 0.001 * (Attenuation_Partition_Coefficient_Kd_Species_5) * (Attenuation_Dry_bulk_density) / (Hydrogeology_Porosity Hydrogeology!$H:$H) ->  | I153: =1 + 0.001 * (Attenuation_Partition_Coefficient_Kd_Species_5) * (Attenuation_Dry_bulk_density) / (Hydrogeology_Porosity Hydrogeology!$I:$I) ->  | J153: =1 + 0.001 * (Attenuation_Partition_Coefficient_Kd_Species_5) * (Attenuation_Dry_bulk_density) / (Hydrogeology_Porosity Hydrogeology!$J:$J) ->  | K153: =1 + 0.001 * (Attenuation_Partition_Coefficient_Kd_Species_5) * (Attenuation_Dry_bulk_density) / (Hydrogeology_Porosity Hydrogeology!$K:$K) ->  | L153: =1 + 0.001 * (Attenuation_Partition_Coefficient_Kd_Species_5) * (Attenuation_Dry_bulk_density) / (Hydrogeology_Porosity Hydrogeology!$L:$L) ->  | M153: =1 + 0.001 * (Attenuation_Partition_Coefficient_Kd_Species_5) * (Attenuation_Dry_bulk_density) / (Hydrogeology_Porosity Hydrogeology!$M:$M) ->  | N153: =1 + 0.001 * (Attenuation_Partition_Coefficient_Kd_Species_5) * (Attenuation_Dry_bulk_density) / (Hydrogeology_Porosity Hydrogeology!$N:$N) ->  | O153: =1 + 0.001 * (Attenuation_Partition_Coefficient_Kd_Species_5) * (Attenuation_Dry_bulk_density) / (Hydrogeology_Porosity Hydrogeology!$O:$O) ->  | P153: =1 + 0.001 * (Attenuation_Partition_Coefficient_Kd_Species_5) * (Attenuation_Dry_bulk_density) / (Hydrogeology_Porosity Hydrogeology!$P:$P) ->  | Q153: =1 + 0.001 * (Attenuation_Partition_Coefficient_Kd_Species_5) * (Attenuation_Dry_bulk_density) / (Hydrogeology_Porosity Hydrogeology!$Q:$Q) ->  | R153: =1 + 0.001 * (Attenuation_Partition_Coefficient_Kd_Species_5) * (Attenuation_Dry_bulk_density) / (Hydrogeology_Porosity Hydrogeology!$R:$R) -> 
A154: Distribution | C154: constant | D154: constant | E154: constant | F154: constant | G154: constant | H154: constant | I154: constant | J154: constant | K154: constant | L154: constant | M154: constant | N154: constant | O154: constant | P154: constant | Q154: constant | R154: constant
A155: Attenuation_Retardation_Species_5_param1
A156: Attenuation_Retardation_Species_5_param2
A157: Attenuation_Retardation_Species_5_param3
A160: Attenuation_Half_Life_Species_5 | B160: days | C160: No Decay | D160: No Decay | E160: No Decay | F160: No Decay | G160: No Decay | H160: No Decay | I160: No Decay | J160: No Decay | K160: No Decay | L160: No Decay | M160: No Decay | N160: No Decay | O160: No Decay | P160: No Decay | Q160: No Decay | R160: No Decay
A161: Distribution | C161: constant | D161: constant | E161: constant | F161: constant | G161: constant | H161: constant | I161: constant | J161: constant | K161: constant | L161: constant | M161: constant | N161: constant | O161: constant | P161: constant | Q161: constant | R161: constant
A162: Attenuation_Half_Life_Species_5_param1
A163: Attenuation_Half_Life_Species_5_param2
A164: Attenuation_Half_Life_Species_5_param3
A167: Attenuation_Decay_Coefficient_Species_5 | B167: 1/s | C167: =IF((Attenuation_Half_Life_Species_5)<>"No Decay", LN(2) / ((Attenuation_Half_Life_Species_5) * s_per_day),0) -> 0 | D167: 0 | E167: 0 | F167: 0 | G167: 0 | H167: 0 | I167: 0 | J167: 0 | K167: 0 | L167: 0 | M167: 0 | N167: 0 | O167: 0 | P167: 0 | Q167: 0 | R167: 0
A168: Distribution | C168: constant | D168: constant | E168: constant | F168: constant | G168: constant | H168: constant | I168: constant | J168: constant | K168: constant | L168: constant | M168: constant | N168: constant | O168: constant | P168: constant | Q168: constant | R168: constant
A169: Attenuation_Decay_Coefficient_Species_5_param1
A170: Attenuation_Decay_Coefficient_Species_5_param2
A171: Attenuation_Decay_Coefficient_Species_5_param3
A174: =IF((Contaminants_Source_determinand_names Contaminants_Species6)=0,"Undefined",(Contaminants_Source_determinand_names Contaminants_Species6)) -> Undefined
A176: Attenuation_Partition_Coefficient_Kd_Species_6 | B176: L/kg | C176: =(Attenuation_Fraction_organic_carbon) * (Contaminants_Organic_Carbon_Water_Partition_Coefficient_Koc Contaminants_Species6) -> 0 | D176: =(Attenuation_Fraction_organic_carbon) * (Contaminants_Organic_Carbon_Water_Partition_Coefficient_Koc Contaminants_Species6) -> 0 | E176: =(Attenuation_Fraction_organic_carbon) * (Contaminants_Organic_Carbon_Water_Partition_Coefficient_Koc Contaminants_Species6) -> 0 | F176: =(Attenuation_Fraction_organic_carbon) * (Contaminants_Organic_Carbon_Water_Partition_Coefficient_Koc Contaminants_Species6) -> 0 | G176: =(Attenuation_Fraction_organic_carbon) * (Contaminants_Organic_Carbon_Water_Partition_Coefficient_Koc Contaminants_Species6) -> 0 | H176: =(Attenuation_Fraction_organic_carbon) * (Contaminants_Organic_Carbon_Water_Partition_Coefficient_Koc Contaminants_Species6) -> 0 | I176: =(Attenuation_Fraction_organic_carbon) * (Contaminants_Organic_Carbon_Water_Partition_Coefficient_Koc Contaminants_Species6) -> 0 | J176: =(Attenuation_Fraction_organic_carbon) * (Contaminants_Organic_Carbon_Water_Partition_Coefficient_Koc Contaminants_Species6) -> 0 | K176: =(Attenuation_Fraction_organic_carbon) * (Contaminants_Organic_Carbon_Water_Partition_Coefficient_Koc Contaminants_Species6) -> 0 | L176: =(Attenuation_Fraction_organic_carbon) * (Contaminants_Organic_Carbon_Water_Partition_Coefficient_Koc Contaminants_Species6) -> 0 | M176: =(Attenuation_Fraction_organic_carbon) * (Contaminants_Organic_Carbon_Water_Partition_Coefficient_Koc Contaminants_Species6) -> 0 | N176: =(Attenuation_Fraction_organic_carbon) * (Contaminants_Organic_Carbon_Water_Partition_Coefficient_Koc Contaminants_Species6) -> 0 | O176: =(Attenuation_Fraction_organic_carbon) * (Contaminants_Organic_Carbon_Water_Partition_Coefficient_Koc Contaminants_Species6) -> 0 | P176: =(Attenuation_Fraction_organic_carbon) * (Contaminants_Organic_Carbon_Water_Partition_Coefficient_Koc Contaminants_Species6) -> 0 | Q176: =(Attenuation_Fraction_organic_carbon) * (Contaminants_Organic_Carbon_Water_Partition_Coefficient_Koc Contaminants_Species6) -> 0 | R176: =(Attenuation_Fraction_organic_carbon) * (Contaminants_Organic_Carbon_Water_Partition_Coefficient_Koc Contaminants_Species6) -> 0
A177: Distribution | C177: constant | D177: constant | E177: constant | F177: constant | G177: constant | H177: constant | I177: constant | J177: constant | K177: constant | L177: constant | M177: constant | N177: constant | O177: constant | P177: constant | Q177: constant | R177: constant
A178: Attenuation_Partition_Coefficient_Kd_Species_6_param1
A179: Attenuation_Partition_Coefficient_Kd_Species_6_param2
A180: Attenuation_Partition_Coefficient_Kd_Species_6_param3
A183: Attenuation_Retardation_Species_6 | B183: [-] | C183: =1 + 0.001 * (Attenuation_Partition_Coefficient_Kd_Species_6) * (Attenuation_Dry_bulk_density) / (Hydrogeology_Porosity Hydrogeology!$C:$C) -> 1 | D183: =1 + 0.001 * (Attenuation_Partition_Coefficient_Kd_Species_6) * (Attenuation_Dry_bulk_density) / (Hydrogeology_Porosity Hydrogeology!$D:$D) -> 1 | E183: =1 + 0.001 * (Attenuation_Partition_Coefficient_Kd_Species_6) * (Attenuation_Dry_bulk_density) / (Hydrogeology_Porosity Hydrogeology!$E:$E) -> 1 | F183: =1 + 0.001 * (Attenuation_Partition_Coefficient_Kd_Species_6) * (Attenuation_Dry_bulk_density) / (Hydrogeology_Porosity Hydrogeology!$F:$F) ->  | G183: =1 + 0.001 * (Attenuation_Partition_Coefficient_Kd_Species_6) * (Attenuation_Dry_bulk_density) / (Hydrogeology_Porosity Hydrogeology!$G:$G) ->  | H183: =1 + 0.001 * (Attenuation_Partition_Coefficient_Kd_Species_6) * (Attenuation_Dry_bulk_density) / (Hydrogeology_Porosity Hydrogeology!$H:$H) ->  | I183: =1 + 0.001 * (Attenuation_Partition_Coefficient_Kd_Species_6) * (Attenuation_Dry_bulk_density) / (Hydrogeology_Porosity Hydrogeology!$I:$I) ->  | J183: =1 + 0.001 * (Attenuation_Partition_Coefficient_Kd_Species_6) * (Attenuation_Dry_bulk_density) / (Hydrogeology_Porosity Hydrogeology!$J:$J) ->  | K183: =1 + 0.001 * (Attenuation_Partition_Coefficient_Kd_Species_6) * (Attenuation_Dry_bulk_density) / (Hydrogeology_Porosity Hydrogeology!$K:$K) ->  | L183: =1 + 0.001 * (Attenuation_Partition_Coefficient_Kd_Species_6) * (Attenuation_Dry_bulk_density) / (Hydrogeology_Porosity Hydrogeology!$L:$L) ->  | M183: =1 + 0.001 * (Attenuation_Partition_Coefficient_Kd_Species_6) * (Attenuation_Dry_bulk_density) / (Hydrogeology_Porosity Hydrogeology!$M:$M) ->  | N183: =1 + 0.001 * (Attenuation_Partition_Coefficient_Kd_Species_6) * (Attenuation_Dry_bulk_density) / (Hydrogeology_Porosity Hydrogeology!$N:$N) ->  | O183: =1 + 0.001 * (Attenuation_Partition_Coefficient_Kd_Species_6) * (Attenuation_Dry_bulk_density) / (Hydrogeology_Porosity Hydrogeology!$O:$O) ->  | P183: =1 + 0.001 * (Attenuation_Partition_Coefficient_Kd_Species_6) * (Attenuation_Dry_bulk_density) / (Hydrogeology_Porosity Hydrogeology!$P:$P) ->  | Q183: =1 + 0.001 * (Attenuation_Partition_Coefficient_Kd_Species_6) * (Attenuation_Dry_bulk_density) / (Hydrogeology_Porosity Hydrogeology!$Q:$Q) ->  | R183: =1 + 0.001 * (Attenuation_Partition_Coefficient_Kd_Species_6) * (Attenuation_Dry_bulk_density) / (Hydrogeology_Porosity Hydrogeology!$R:$R) -> 
A184: Distribution | C184: constant | D184: constant | E184: constant | F184: constant | G184: constant | H184: constant | I184: constant | J184: constant | K184: constant | L184: constant | M184: constant | N184: constant | O184: constant | P184: constant | Q184: constant | R184: constant
A185: Attenuation_Retardation_Species_6_param1
A186: Attenuation_Retardation_Species_6_param2
A187: Attenuation_Retardation_Species_6_param3
A190: Attenuation_Half_Life_Species_6 | B190: days | C190: No Decay | D190: No Decay | E190: No Decay | F190: No Decay | G190: No Decay | H190: No Decay | I190: No Decay | J190: No Decay | K190: No Decay | L190: No Decay | M190: No Decay | N190: No Decay | O190: No Decay | P190: No Decay | Q190: No Decay | R190: No Decay
A191: Distribution | C191: constant | D191: constant | E191: constant | F191: constant | G191: constant | H191: constant | I191: constant | J191: constant | K191: constant | L191: constant | M191: constant | N191: constant | O191: constant | P191: constant | Q191: constant | R191: constant
A192: Attenuation_Half_Life_Species_6_param1
A193: Attenuation_Half_Life_Species_6_param2
A194: Attenuation_Half_Life_Species_6_param3
A197: Attenuation_Decay_Coefficient_Species_6 | B197: 1/s | C197: =IF((Attenuation_Half_Life_Species_6)<>"No Decay", LN(2) / ((Attenuation_Half_Life_Species_6) * s_per_day),0) -> 0 | D197: 0 | E197: 0 | F197: 0 | G197: 0 | H197: 0 | I197: 0 | J197: 0 | K197: 0 | L197: 0 | M197: 0 | N197: 0 | O197: 0 | P197: 0 | Q197: 0 | R197: 0
A198: Distribution | C198: constant | D198: constant | E198: constant | F198: constant | G198: constant | H198: constant | I198: constant | J198: constant | K198: constant | L198: constant | M198: constant | N198: constant | O198: constant | P198: constant | Q198: constant | R198: constant
A199: Attenuation_Decay_Coefficient_Species_6_param1
A200: Attenuation_Decay_Coefficient_Species_6_param2
A201: Attenuation_Decay_Coefficient_Species_6_param3
A204: =IF((Contaminants_Source_determinand_names Contaminants_Species7)=0,"Undefined",(Contaminants_Source_determinand_names Contaminants_Species7)) -> Undefined
A206: Attenuation_Partition_Coefficient_Kd_Species_7 | B206: L/kg | C206: =(Attenuation_Fraction_organic_carbon) * (Contaminants_Organic_Carbon_Water_Partition_Coefficient_Koc Contaminants_Species7) -> 0 | D206: =(Attenuation_Fraction_organic_carbon) * (Contaminants_Organic_Carbon_Water_Partition_Coefficient_Koc Contaminants_Species7) -> 0 | E206: =(Attenuation_Fraction_organic_carbon) * (Contaminants_Organic_Carbon_Water_Partition_Coefficient_Koc Contaminants_Species7) -> 0 | F206: =(Attenuation_Fraction_organic_carbon) * (Contaminants_Organic_Carbon_Water_Partition_Coefficient_Koc Contaminants_Species7) -> 0 | G206: =(Attenuation_Fraction_organic_carbon) * (Contaminants_Organic_Carbon_Water_Partition_Coefficient_Koc Contaminants_Species7) -> 0 | H206: =(Attenuation_Fraction_organic_carbon) * (Contaminants_Organic_Carbon_Water_Partition_Coefficient_Koc Contaminants_Species7) -> 0 | I206: =(Attenuation_Fraction_organic_carbon) * (Contaminants_Organic_Carbon_Water_Partition_Coefficient_Koc Contaminants_Species7) -> 0 | J206: =(Attenuation_Fraction_organic_carbon) * (Contaminants_Organic_Carbon_Water_Partition_Coefficient_Koc Contaminants_Species7) -> 0 | K206: =(Attenuation_Fraction_organic_carbon) * (Contaminants_Organic_Carbon_Water_Partition_Coefficient_Koc Contaminants_Species7) -> 0 | L206: =(Attenuation_Fraction_organic_carbon) * (Contaminants_Organic_Carbon_Water_Partition_Coefficient_Koc Contaminants_Species7) -> 0 | M206: =(Attenuation_Fraction_organic_carbon) * (Contaminants_Organic_Carbon_Water_Partition_Coefficient_Koc Contaminants_Species7) -> 0 | N206: =(Attenuation_Fraction_organic_carbon) * (Contaminants_Organic_Carbon_Water_Partition_Coefficient_Koc Contaminants_Species7) -> 0 | O206: =(Attenuation_Fraction_organic_carbon) * (Contaminants_Organic_Carbon_Water_Partition_Coefficient_Koc Contaminants_Species7) -> 0 | P206: =(Attenuation_Fraction_organic_carbon) * (Contaminants_Organic_Carbon_Water_Partition_Coefficient_Koc Contaminants_Species7) -> 0 | Q206: =(Attenuation_Fraction_organic_carbon) * (Contaminants_Organic_Carbon_Water_Partition_Coefficient_Koc Contaminants_Species7) -> 0 | R206: =(Attenuation_Fraction_organic_carbon) * (Contaminants_Organic_Carbon_Water_Partition_Coefficient_Koc Contaminants_Species7) -> 0
A207: Distribution | C207: constant | D207: constant | E207: constant | F207: constant | G207: constant | H207: constant | I207: constant | J207: constant | K207: constant | L207: constant | M207: constant | N207: constant | O207: constant | P207: constant | Q207: constant | R207: constant
A208: Attenuation_Partition_Coefficient_Kd_Species_7_param1
A209: Attenuation_Partition_Coefficient_Kd_Species_7_param2
A210: Attenuation_Partition_Coefficient_Kd_Species_7_param3
A213: Attenuation_Retardation_Species_7 | B213: [-] | C213: =1 + 0.001 * (Attenuation_Partition_Coefficient_Kd_Species_7) * (Attenuation_Dry_bulk_density) / (Hydrogeology_Porosity Hydrogeology!$C:$C) -> 1 | D213: =1 + 0.001 * (Attenuation_Partition_Coefficient_Kd_Species_7) * (Attenuation_Dry_bulk_density) / (Hydrogeology_Porosity Hydrogeology!$D:$D) -> 1 | E213: =1 + 0.001 * (Attenuation_Partition_Coefficient_Kd_Species_7) * (Attenuation_Dry_bulk_density) / (Hydrogeology_Porosity Hydrogeology!$E:$E) -> 1 | F213: =1 + 0.001 * (Attenuation_Partition_Coefficient_Kd_Species_7) * (Attenuation_Dry_bulk_density) / (Hydrogeology_Porosity Hydrogeology!$F:$F) ->  | G213: =1 + 0.001 * (Attenuation_Partition_Coefficient_Kd_Species_7) * (Attenuation_Dry_bulk_density) / (Hydrogeology_Porosity Hydrogeology!$G:$G) ->  | H213: =1 + 0.001 * (Attenuation_Partition_Coefficient_Kd_Species_7) * (Attenuation_Dry_bulk_density) / (Hydrogeology_Porosity Hydrogeology!$H:$H) ->  | I213: =1 + 0.001 * (Attenuation_Partition_Coefficient_Kd_Species_7) * (Attenuation_Dry_bulk_density) / (Hydrogeology_Porosity Hydrogeology!$I:$I) ->  | J213: =1 + 0.001 * (Attenuation_Partition_Coefficient_Kd_Species_7) * (Attenuation_Dry_bulk_density) / (Hydrogeology_Porosity Hydrogeology!$J:$J) ->  | K213: =1 + 0.001 * (Attenuation_Partition_Coefficient_Kd_Species_7) * (Attenuation_Dry_bulk_density) / (Hydrogeology_Porosity Hydrogeology!$K:$K) ->  | L213: =1 + 0.001 * (Attenuation_Partition_Coefficient_Kd_Species_7) * (Attenuation_Dry_bulk_density) / (Hydrogeology_Porosity Hydrogeology!$L:$L) ->  | M213: =1 + 0.001 * (Attenuation_Partition_Coefficient_Kd_Species_7) * (Attenuation_Dry_bulk_density) / (Hydrogeology_Porosity Hydrogeology!$M:$M) ->  | N213: =1 + 0.001 * (Attenuation_Partition_Coefficient_Kd_Species_7) * (Attenuation_Dry_bulk_density) / (Hydrogeology_Porosity Hydrogeology!$N:$N) ->  | O213: =1 + 0.001 * (Attenuation_Partition_Coefficient_Kd_Species_7) * (Attenuation_Dry_bulk_density) / (Hydrogeology_Porosity Hydrogeology!$O:$O) ->  | P213: =1 + 0.001 * (Attenuation_Partition_Coefficient_Kd_Species_7) * (Attenuation_Dry_bulk_density) / (Hydrogeology_Porosity Hydrogeology!$P:$P) ->  | Q213: =1 + 0.001 * (Attenuation_Partition_Coefficient_Kd_Species_7) * (Attenuation_Dry_bulk_density) / (Hydrogeology_Porosity Hydrogeology!$Q:$Q) ->  | R213: =1 + 0.001 * (Attenuation_Partition_Coefficient_Kd_Species_7) * (Attenuation_Dry_bulk_density) / (Hydrogeology_Porosity Hydrogeology!$R:$R) -> 
A214: Distribution | C214: constant | D214: constant | E214: constant | F214: constant | G214: constant | H214: constant | I214: constant | J214: constant | K214: constant | L214: constant | M214: constant | N214: constant | O214: constant | P214: constant | Q214: constant | R214: constant
A215: Attenuation_Retardation_Species_7_param1
A216: Attenuation_Retardation_Species_7_param2
A217: Attenuation_Retardation_Species_7_param3
A220: Attenuation_Half_Life_Species_7 | B220: days | C220: No Decay | D220: No Decay | E220: No Decay | F220: No Decay | G220: No Decay | H220: No Decay | I220: No Decay | J220: No Decay | K220: No Decay | L220: No Decay | M220: No Decay | N220: No Decay | O220: No Decay | P220: No Decay | Q220: No Decay | R220: No Decay
A221: Distribution | C221: constant | D221: constant | E221: constant | F221: constant | G221: constant | H221: constant | I221: constant | J221: constant | K221: constant | L221: constant | M221: constant | N221: constant | O221: constant | P221: constant | Q221: constant | R221: constant
A222: Attenuation_Half_Life_Species_7_param1
A223: Attenuation_Half_Life_Species_7_param2
A224: Attenuation_Half_Life_Species_7_param3
A227: Attenuation_Decay_Coefficient_Species_7 | B227: 1/s | C227: =IF((Attenuation_Half_Life_Species_7)<>"No Decay", LN(2) / ((Attenuation_Half_Life_Species_7) * s_per_day),0) -> 0 | D227: 0 | E227: 0 | F227: 0 | G227: 0 | H227: 0 | I227: 0 | J227: 0 | K227: 0 | L227: 0 | M227: 0 | N227: 0 | O227: 0 | P227: 0 | Q227: 0 | R227: 0
A228: Distribution | C228: constant | D228: constant | E228: constant | F228: constant | G228: constant | H228: constant | I228: constant | J228: constant | K228: constant | L228: constant | M228: constant | N228: constant | O228: constant | P228: constant | Q228: constant | R228: constant
A229: Attenuation_Decay_Coefficient_Species_7_param1
A230: Attenuation_Decay_Coefficient_Species_7_param2
A231: Attenuation_Decay_Coefficient_Species_7_param3
A234: =IF((Contaminants_Source_determinand_names Contaminants_Species8)=0,"Undefined",(Contaminants_Source_determinand_names Contaminants_Species8)) -> Undefined
A236: Attenuation_Partition_Coefficient_Kd_Species_8 | B236: L/kg | C236: =(Attenuation_Fraction_organic_carbon) * (Contaminants_Organic_Carbon_Water_Partition_Coefficient_Koc Contaminants_Species8) -> 0 | D236: =(Attenuation_Fraction_organic_carbon) * (Contaminants_Organic_Carbon_Water_Partition_Coefficient_Koc Contaminants_Species8) -> 0 | E236: =(Attenuation_Fraction_organic_carbon) * (Contaminants_Organic_Carbon_Water_Partition_Coefficient_Koc Contaminants_Species8) -> 0 | F236: =(Attenuation_Fraction_organic_carbon) * (Contaminants_Organic_Carbon_Water_Partition_Coefficient_Koc Contaminants_Species8) -> 0 | G236: =(Attenuation_Fraction_organic_carbon) * (Contaminants_Organic_Carbon_Water_Partition_Coefficient_Koc Contaminants_Species8) -> 0 | H236: =(Attenuation_Fraction_organic_carbon) * (Contaminants_Organic_Carbon_Water_Partition_Coefficient_Koc Contaminants_Species8) -> 0 | I236: =(Attenuation_Fraction_organic_carbon) * (Contaminants_Organic_Carbon_Water_Partition_Coefficient_Koc Contaminants_Species8) -> 0 | J236: =(Attenuation_Fraction_organic_carbon) * (Contaminants_Organic_Carbon_Water_Partition_Coefficient_Koc Contaminants_Species8) -> 0 | K236: =(Attenuation_Fraction_organic_carbon) * (Contaminants_Organic_Carbon_Water_Partition_Coefficient_Koc Contaminants_Species8) -> 0 | L236: =(Attenuation_Fraction_organic_carbon) * (Contaminants_Organic_Carbon_Water_Partition_Coefficient_Koc Contaminants_Species8) -> 0 | M236: =(Attenuation_Fraction_organic_carbon) * (Contaminants_Organic_Carbon_Water_Partition_Coefficient_Koc Contaminants_Species8) -> 0 | N236: =(Attenuation_Fraction_organic_carbon) * (Contaminants_Organic_Carbon_Water_Partition_Coefficient_Koc Contaminants_Species8) -> 0 | O236: =(Attenuation_Fraction_organic_carbon) * (Contaminants_Organic_Carbon_Water_Partition_Coefficient_Koc Contaminants_Species8) -> 0 | P236: =(Attenuation_Fraction_organic_carbon) * (Contaminants_Organic_Carbon_Water_Partition_Coefficient_Koc Contaminants_Species8) -> 0 | Q236: =(Attenuation_Fraction_organic_carbon) * (Contaminants_Organic_Carbon_Water_Partition_Coefficient_Koc Contaminants_Species8) -> 0 | R236: =(Attenuation_Fraction_organic_carbon) * (Contaminants_Organic_Carbon_Water_Partition_Coefficient_Koc Contaminants_Species8) -> 0
A237: Distribution | C237: constant | D237: constant | E237: constant | F237: constant | G237: constant | H237: constant | I237: constant | J237: constant | K237: constant | L237: constant | M237: constant | N237: constant | O237: constant | P237: constant | Q237: constant | R237: constant
A238: Attenuation_Partition_Coefficient_Kd_Species_8_param1
A239: Attenuation_Partition_Coefficient_Kd_Species_8_param2
A240: Attenuation_Partition_Coefficient_Kd_Species_8_param3
A243: Attenuation_Retardation_Species_8 | B243: [-] | C243: =1 + 0.001 * (Attenuation_Partition_Coefficient_Kd_Species_8) * (Attenuation_Dry_bulk_density) / (Hydrogeology_Porosity Hydrogeology!$C:$C) -> 1 | D243: =1 + 0.001 * (Attenuation_Partition_Coefficient_Kd_Species_8) * (Attenuation_Dry_bulk_density) / (Hydrogeology_Porosity Hydrogeology!$D:$D) -> 1 | E243: =1 + 0.001 * (Attenuation_Partition_Coefficient_Kd_Species_8) * (Attenuation_Dry_bulk_density) / (Hydrogeology_Porosity Hydrogeology!$E:$E) -> 1 | F243: =1 + 0.001 * (Attenuation_Partition_Coefficient_Kd_Species_8) * (Attenuation_Dry_bulk_density) / (Hydrogeology_Porosity Hydrogeology!$F:$F) ->  | G243: =1 + 0.001 * (Attenuation_Partition_Coefficient_Kd_Species_8) * (Attenuation_Dry_bulk_density) / (Hydrogeology_Porosity Hydrogeology!$G:$G) ->  | H243: =1 + 0.001 * (Attenuation_Partition_Coefficient_Kd_Species_8) * (Attenuation_Dry_bulk_density) / (Hydrogeology_Porosity Hydrogeology!$H:$H) ->  | I243: =1 + 0.001 * (Attenuation_Partition_Coefficient_Kd_Species_8) * (Attenuation_Dry_bulk_density) / (Hydrogeology_Porosity Hydrogeology!$I:$I) ->  | J243: =1 + 0.001 * (Attenuation_Partition_Coefficient_Kd_Species_8) * (Attenuation_Dry_bulk_density) / (Hydrogeology_Porosity Hydrogeology!$J:$J) ->  | K243: =1 + 0.001 * (Attenuation_Partition_Coefficient_Kd_Species_8) * (Attenuation_Dry_bulk_density) / (Hydrogeology_Porosity Hydrogeology!$K:$K) ->  | L243: =1 + 0.001 * (Attenuation_Partition_Coefficient_Kd_Species_8) * (Attenuation_Dry_bulk_density) / (Hydrogeology_Porosity Hydrogeology!$L:$L) ->  | M243: =1 + 0.001 * (Attenuation_Partition_Coefficient_Kd_Species_8) * (Attenuation_Dry_bulk_density) / (Hydrogeology_Porosity Hydrogeology!$M:$M) ->  | N243: =1 + 0.001 * (Attenuation_Partition_Coefficient_Kd_Species_8) * (Attenuation_Dry_bulk_density) / (Hydrogeology_Porosity Hydrogeology!$N:$N) ->  | O243: =1 + 0.001 * (Attenuation_Partition_Coefficient_Kd_Species_8) * (Attenuation_Dry_bulk_density) / (Hydrogeology_Porosity Hydrogeology!$O:$O) ->  | P243: =1 + 0.001 * (Attenuation_Partition_Coefficient_Kd_Species_8) * (Attenuation_Dry_bulk_density) / (Hydrogeology_Porosity Hydrogeology!$P:$P) ->  | Q243: =1 + 0.001 * (Attenuation_Partition_Coefficient_Kd_Species_8) * (Attenuation_Dry_bulk_density) / (Hydrogeology_Porosity Hydrogeology!$Q:$Q) ->  | R243: =1 + 0.001 * (Attenuation_Partition_Coefficient_Kd_Species_8) * (Attenuation_Dry_bulk_density) / (Hydrogeology_Porosity Hydrogeology!$R:$R) -> 
A244: Distribution | C244: constant | D244: constant | E244: constant | F244: constant | G244: constant | H244: constant | I244: constant | J244: constant | K244: constant | L244: constant | M244: constant | N244: constant | O244: constant | P244: constant | Q244: constant | R244: constant
A245: Attenuation_Retardation_Species_8_param1
A246: Attenuation_Retardation_Species_8_param2
A247: Attenuation_Retardation_Species_8_param3
A250: Attenuation_Half_Life_Species_8 | B250: days | C250: No Decay | D250: No Decay | E250: No Decay | F250: No Decay | G250: No Decay | H250: No Decay | I250: No Decay | J250: No Decay | K250: No Decay | L250: No Decay | M250: No Decay | N250: No Decay | O250: No Decay | P250: No Decay | Q250: No Decay | R250: No Decay
A251: Distribution | C251: constant | D251: constant | E251: constant | F251: constant | G251: constant | H251: constant | I251: constant | J251: constant | K251: constant | L251: constant | M251: constant | N251: constant | O251: constant | P251: constant | Q251: constant | R251: constant
A252: Attenuation_Half_Life_Species_8_param1
A253: Attenuation_Half_Life_Species_8_param2
A254: Attenuation_Half_Life_Species_8_param3
A257: Attenuation_Decay_Coefficient_Species_8 | B257: 1/s | C257: =IF((Attenuation_Half_Life_Species_8)<>"No Decay", LN(2) / ((Attenuation_Half_Life_Species_8) * s_per_day),0) -> 0 | D257: 0 | E257: 0 | F257: 0 | G257: 0 | H257: 0 | I257: 0 | J257: 0 | K257: 0 | L257: 0 | M257: 0 | N257: 0 | O257: 0 | P257: 0 | Q257: 0 | R257: 0
A258: Distribution | C258: constant | D258: constant | E258: constant | F258: constant | G258: constant | H258: constant | I258: constant | J258: constant | K258: constant | L258: constant | M258: constant | N258: constant | O258: constant | P258: constant | Q258: constant | R258: constant
A259: Attenuation_Decay_Coefficient_Species_8_param1
A260: Attenuation_Decay_Coefficient_Species_8_param2
A261: Attenuation_Decay_Coefficient_Species_8_param3

Sheet WaterBalance
A1: WATER BALANCE
A3: User defined
A5: Enter your own calculations for the water balance
A6: Carry fluxes and velocities over onto the Pathway sheet
E10: Infiltration through the soil zone source
E11: Source Name: Infill
E13: Effective_Rainfall | F13: =R25 -> 359.1 | G13: mm/year
E14: Infiltration_Factor | F14: 1 | G14: [-]
E15: Infiltration_Rate | F15: =F14*F13 -> 359.1 | G15: mm/year
E16: Infiltration_Area | F16: =Infill_Source_area -> 51128 | G16: m2
E18: Q_Infiltration | F18: =F15*F16/1000/s_per_year -> 0.0005817953457 | G18: m3/s
G21: Jan | H21: feb | I21: Mar | J21: Apr | K21: May | L21: Jun | M21: Jul | N21: Aug | O21: Sep | P21: Oct | Q21: Nov | R21: Dec
F22: Rainfall (mm) | G22: 65.2 | H22: 53.2 | I22: 46.5 | J22: 57.8 | K22: 69.7 | L22: 64.9 | M22: 76.2 | N22: 70.4 | O22: 54.8 | P22: 91.2 | Q22: 79.3 | R22: 71.1
F23: Potential transpiration (mm) | G23: 1 | H23: 8 | I23: 30 | J23: 55 | K23: 80 | L23: 93 | M23: 93 | N23: 72 | O23: 43 | P23: 19 | Q23: 4 | R23: 0
F24: Effective rainfall (mm) | G24: =G22-G23 -> 64.2 | H24: =H22-H23 -> 45.2 | I24: 16.5 | J24: 2.8 | O24: 11.8 | P24: 72.2 | Q24: 75.3 | R24: 71.1
Q25: Total ER | R25: =SUM(G24:R24) -> 359.1

Sheet Pathways
A1: PATHWAY SUMMARY
A3: Path 1 | C3: Section 1 | E3: Section 2 | G3: Section 3 | I3: Section 4 | K3: Section 5
A4: Path 1 Type | C4: Source | E4: Unit | G4: Unit | I4: Unit | K4: Receptor
A5: Path 1 Name | C5: Infill | E5: Geo Barrier: Node 1 | G5: Sst Unsaturated: Node 1 | I5: Sst Saturated: Node 1 | K5: Principal Aquifer
A6: Path 1 Process | C6: Declining source | E6: ADRD (1D) + Dilution | G6: ADRD (1D) + Dilution | I6: ADRD (1D) + Dilution | K6: Monitoring Borehole
A7: Path 1 Standards | J7: Target Standard | K7: MRV
A8: Path 1 Parameter1 | B8: Q_managed [m3/s] | C8: 0 | D8: Velocity [m/s] | E8: =(Geo_Barrier Hydrogeology_Velocity) -> 1.25e-08 | F8: Velocity [m/s] | G8: =(Sst_Unsaturated Hydrogeology_Velocity) -> 0.0005185185185 | H8: Velocity [m/s] | I8: =(Sst_Saturated Hydrogeology_Velocity) -> 1.037037037e-05
A9: Path 1 Parameter2 | B9: Managed time [years] | C9: 0 | D9: Dispersivity [m] | E9: =E10/10 -> 0.1 | F9: Dispersivity [m] | G9: =G10/10 -> 0.35 | H9: Dispersivity [m] | I9: =I10/10 -> 0
A10: Path 1 Parameter3 | B10: Q_path [m3/s] | C10: =WaterBalance!F18 -> 0.0005817953457 | D10: Travel Distance [m] | E10: =Hydrogeology!E5 -> 1 | F10: Travel Distance [m] | G10: =Hydrogeology!C5 -> 3.5 | H10: Travel Distance [m] | I10: 0
A11: Path 1 Parameter4 | B11: Q_decline [m3/s] | C11: =WaterBalance!F18 -> 0.0005817953457 | D11: Mixing Depth [m] | F11: Mixing Depth [m] | H11: Mixing Depth [m] | I11: =Hydrogeology!D5 -> 10
A12: Path 1 Parameter5 | D12: Mixing Width [m] | F12: Mixing Width [m] | H12: Mixing Width [m] | I12: =Infill_Source_width -> 246
A13: Path 1 Parameter6 | D13: Q_Dilute [m3/s] | E13: =Path1_Param5*Path1_Param4*(Geo_Barrier Hydrogeology_Hydraulic_Conductivity)*(Geo_Barrier Hydrogeology_Hydraulic_Gradient) -> 0 | F13: Q_Dilute [m3/s] | G13: =Path1_Param5*Path1_Param4*(Sst_Unsaturated Hydrogeology_Hydraulic_Conductivity)*(Sst_Unsaturated Hydrogeology_Hydraulic_Gradient) -> 0 | H13: Q_Dilute [m3/s] | I13: =Path1_Param5*Path1_Param4*(Sst_Saturated Hydrogeology_Hydraulic_Conductivity)*(Sst_Saturated Hydrogeology_Hydraulic_Gradient) -> 0.006888 | J13: Q_dilute [m3/s] | K13: 0
A16: Path 2 | C16: Section 1 | E16: Section 2 | G16: Section 3 | I16: Section 4 | K16: Section 5
A17: Path 2 Type | C17: Source | E17: Unit | G17: Unit | I17: Unit | K17: Receptor
A18: Path 2 Name | C18: Infill | E18: Geo Barrier: Node 2 | G18: Sst Unsaturated: Node 2 | I18: Sst Saturated: Node 2 | K18: Principal Aquifer at Site Boundary
A19: Path 2 Process | C19: Declining source | E19: ADRD (1D) + Dilution | G19: ADRD (1D) + Dilution | I19: ADRD (1D) + Dilution | K19: Monitoring Borehole
A20: Path 2 Standards | J20: Target Standard | K20: MRV
A21: Path 2 Parameter1 | B21: Q_managed [m3/s] | C21: 0 | D21: Velocity [m/s] | E21: =(Geo_Barrier Hydrogeology_Velocity) -> 1.25e-08 | F21: Velocity [m/s] | G21: =(Sst_Unsaturated Hydrogeology_Velocity) -> 0.0005185185185 | H21: Velocity [m/s] | I21: =(Sst_Saturated Hydrogeology_Velocity) -> 1.037037037e-05
A22: Path 2 Parameter2 | B22: Managed time [years] | C22: 0 | D22: Dispersivity [m] | E22: =E23/10 -> 0.1 | F22: Dispersivity [m] | G22: =G23/10 -> 0.35 | H22: Dispersivity [m] | I22: =I23/10 -> 10.35
A23: Path 2 Parameter3 | B23: Q_path [m3/s] | C23: =WaterBalance!F18 -> 0.0005817953457 | D23: Travel Distance [m] | E23: =Hydrogeology!E5 -> 1 | F23: Travel Distance [m] | G23: =Hydrogeology!C5 -> 3.5 | H23: Travel Distance [m] | I23: =Infill_Source_length/2 -> 103.5
A24: Path 2 Parameter4 | B24: Q_decline [m3/s] | C24: =WaterBalance!F18 -> 0.0005817953457 | D24: Mixing Depth [m] | F24: Mixing Depth [m] | H24: Mixing Depth [m] | I24: =Hydrogeology!D5 -> 10
A25: Path 2 Parameter5 | D25: Mixing Width [m] | F25: Mixing Width [m] | H25: Mixing Width [m] | I25: =Infill_Source_width -> 246
A26: Path 2 Parameter6 | D26: Q_Dilute [m3/s] | E26: =Path2_Param5*Path2_Param4*(Geo_Barrier Hydrogeology_Hydraulic_Conductivity)*(Geo_Barrier Hydrogeology_Hydraulic_Gradient) -> 0 | F26: Q_Dilute [m3/s] | G26: =Path2_Param5*Path2_Param4*(Sst_Unsaturated Hydrogeology_Hydraulic_Conductivity)*(Sst_Unsaturated Hydrogeology_Hydraulic_Gradient) -> 0 | H26: Q_Dilute [m3/s] | I26: =Path2_Param5*Path2_Param4*(Sst_Saturated Hydrogeology_Hydraulic_Conductivity)*(Sst_Saturated Hydrogeology_Hydraulic_Gradient) -> 0.006888 | J26: Q_dilute [m3/s] | K26: 0

Sheet Simulation
A1: SIMULATION PARAMETERS
B3: Monte Carlo Analysis with Crystal Ball | J3: Named Constants
C5: Reported Percentile | F5: 95 | K5: s_per_year | L5: =365.25*60*60*24 -> 31557600
C6: Number of simulations | F6: 10000 | K6: s_per_day | L6: =60*60*24 -> 86400
J9: Laplace Transform Solution Parameters
C11: Minimise while running: | K11: sigma | L11: 0
K12: nu | L12: 1
K13: nsum | L13: 16
K14: omega | L14: 11
B17: Reporting Options
C22: Number of timeslices for breakthrough curves | G22: 20
B24: The timeslices specified on the results sheets are saved below.
C25: Path1 timeslices in years
C26: TS_Path1_Spec1 | E26: TS_Path1_Spec2 | G26: TS_Path1_Spec3 | I26: TS_Path1_Spec4
C27: 1 | E27: 1 | G27: 1 | I27: 1
C28: 2 | E28: 2 | G28: 2 | I28: 2
C29: 5 | E29: 5 | G29: 5 | I29: 5
C30: 10 | E30: 10 | G30: 10 | I30: 10
C31: 15 | E31: 15 | G31: 15 | I31: 15
C32: 20 | E32: 20 | G32: 20 | I32: 20
C33: 30 | E33: 30 | G33: 30 | I33: 30
C34: 40 | E34: 40 | G34: 40 | I34: 40
C35: 50 | E35: 50 | G35: 50 | I35: 50
C36: 60 | E36: 60 | G36: 60 | I36: 60
C37: 70 | E37: 70 | G37: 70 | I37: 70
C38: 80 | E38: 80 | G38: 80 | I38: 80
C39: 90 | E39: 90 | G39: 90 | I39: 90
C40: 100 | E40: 100 | G40: 100 | I40: 100
C41: 120 | E41: 120 | G41: 120 | I41: 120
C42: 140 | E42: 140 | G42: 140 | I42: 140
C43: 160 | E43: 160 | G43: 160 | I43: 160
C44: 180 | E44: 180 | G44: 180 | I44: 180
C45: 200 | E45: 200 | G45: 200 | I45: 200
C46: 250 | E46: 250 | G46: 250 | I46: 250
C47: Path2 timeslices in years
C48: TS_Path2_Spec1 | E48: TS_Path2_Spec2 | G48: TS_Path2_Spec3 | I48: TS_Path2_Spec4
C49: 1 | E49: 1 | G49: 1 | I49: 1
C50: 2 | E50: 2 | G50: 2 | I50: 2
C51: 5 | E51: 5 | G51: 5 | I51: 5
C52: 10 | E52: 10 | G52: 10 | I52: 10
C53: 15 | E53: 15 | G53: 15 | I53: 15
C54: 20 | E54: 20 | G54: 20 | I54: 20
C55: 30 | E55: 30 | G55: 30 | I55: 30
C56: 40 | E56: 40 | G56: 40 | I56: 40
C57: 50 | E57: 50 | G57: 50 | I57: 50
C58: 60 | E58: 60 | G58: 60 | I58: 60
C59: 70 | E59: 70 | G59: 70 | I59: 70
C60: 80 | E60: 80 | G60: 80 | I60: 80
C61: 90 | E61: 90 | G61: 90 | I61: 90
C62: 100 | E62: 100 | G62: 100 | I62: 100
C63: 120 | E63: 120 | G63: 120 | I63: 120
C64: 140 | E64: 140 | G64: 140 | I64: 140
C65: 160 | E65: 160 | G65: 160 | I65: 160
C66: 180 | E66: 180 | G66: 180 | I66: 180
C67: 200 | E67: 200 | G67: 200 | I67: 200
C68: 250 | E68: 250 | G68: 250 | I68: 250

Sheet Audit
A1: AUDIT TRAIL SHEET
A3: Author | B3: Date | C3: Time | E3: Cell Address | G3: New Value | H3: Old Value | I3: Cell Name
A5: Heather MacLeod | B5: 2022-07-14 | C5: 11:43:13 | E5: Pathways:$E$6 | G5: No Processes | I5: Path1_Process Section2
A7: Heather MacLeod | B7: 2022-07-14 | C7: 11:43:13 | E7: Pathways:$G$6 | G7: No Processes | I7: Path1_Process Section3
A9: Heather MacLeod | B9: 2022-07-14 | C9: 11:43:13 | E9: Pathways:$E$19 | G9: No Processes | I9: Path2_Process Section2
A11: Heather MacLeod | B11: 2022-07-14 | C11: 11:43:13 | E11: Pathways:$G$19 | G11: No Processes | I11: Path2_Process Section3
A13: Heather MacLeod | B13: 2022-07-14 | C13: 11:45:03 | E13: Infill:$B$20 | G13: 246 | I13: Infill_Source_width
A15: Heather MacLeod | B15: 2022-07-14 | C15: 11:45:05 | E15: Infill:$B$19 | G15: 207 | I15: Infill_Source_length
A17: Heather MacLeod | B17: 2022-07-14 | C17: 11:45:14 | E17: Infill:$B$21 | G17: 51128 | H17: 50922 | I17: Formula0
A19: Heather MacLeod | B19: 2022-07-14 | C19: 11:45:53 | E19: Infill:$B$23 | G19: 975000 | H19: 0 | I19: Formula1
A21: Heather MacLeod | B21: 2022-07-14 | C21: 11:47:44 | E21: Infill:$C$28 | G21: 0.25 | I21: Infill_Source_field_capacity
A23: Heather MacLeod | B23: 2022-07-14 | C23: 11:48:56 | E23: Infill:$C$28 | G23: 0.2 | H23: 0.25 | I23: Infill_Source_field_capacity
A25: Heather MacLeod | B25: 2022-07-14 | C25: 11:49:24 | E25: Contaminants:$D$4 | G25: Hg | I25: Contaminants_Source_determinand_names Contaminants_Species1
A27: Heather MacLeod | B27: 2022-07-14 | C27: 11:49:26 | E27: Contaminants:$E$4 | G27: Pb | I27: Contaminants_Source_determinand_names Contaminants_Species2
A29: Heather MacLeod | B29: 2022-07-14 | C29: 11:49:30 | E29: Contaminants:$F$4 | G29: Benzene | I29: Contaminants_Source_determinand_names Contaminants_Species3
A31: Heather MacLeod | B31: 2022-07-14 | C31: 11:49:34 | E31: Contaminants:$G$4 | G31: BaP | I31: Contaminants_Source_determinand_names Contaminants_Species4
A33: Heather MacLeod | B33: 2022-07-14 | C33: 11:49:49 | E33: Contaminants:$B$9 | G33: MRV
A35: Heather MacLeod | B35: 2022-07-14 | C35: 11:50:55 | E35: Contaminants:$D$9 | G35: 0.01 | I35: Quality_Standard_1 Contaminants_Species1
A37: Heather MacLeod | B37: 2022-07-14 | C37: 11:50:57 | E37: Contaminants:$E$9 | G37: 0.2 | I37: Quality_Standard_1 Contaminants_Species2
A39: Heather MacLeod | B39: 2022-07-14 | C39: 11:50:59 | E39: Contaminants:$F$9 | G39: 1 | I39: Quality_Standard_1 Contaminants_Species3
A41: Heather MacLeod | B41: 2022-07-14 | C41: 11:51:01 | E41: Contaminants:$G$9 | G41: 5e-05 | I41: Quality_Standard_1 Contaminants_Species4
A43: Heather MacLeod | B43: 2022-07-14 | C43: 11:51:22 | E43: Contaminants:$D$9 | G43: 1e-05 | H43: 0.01 | I43: Quality_Standard_1 Contaminants_Species1
A45: Heather MacLeod | B45: 2022-07-14 | C45: 11:51:27 | E45: Contaminants:$E$9 | G45: 0.0002 | H45: 0.2 | I45: Quality_Standard_1 Contaminants_Species2
A47: Heather MacLeod | B47: 2022-07-14 | C47: 11:51:33 | E47: Contaminants:$F$9 | G47: 0.001 | H47: 1 | I47: Quality_Standard_1 Contaminants_Species3
A49: Heather MacLeod | B49: 2022-07-14 | C49: 11:51:36 | E49: Contaminants:$G$9 | G49: 5e-05 | H49: 5e-05 | I49: Quality_Standard_1 Contaminants_Species4
A51: Heather MacLeod | B51: 2022-07-14 | C51: 11:51:41 | E51: Contaminants:$G$9 | G51: 5e-08 | H51: 5e-05 | I51: Quality_Standard_1 Contaminants_Species4
A53: Heather MacLeod | B53: 2022-07-14 | C53: 12:01:57 | E53: Contaminants:$F$31 | G53: 66 | I53: Contaminants_Organic_Carbon_Water_Partition_Coefficient_Koc Contaminants_Species3
A55: Heather MacLeod | B55: 2022-07-14 | C55: 12:02:06 | E55: Contaminants:$G$31 | G55: 1170000 | I55: Contaminants_Organic_Carbon_Water_Partition_Coefficient_Koc Contaminants_Species4
A57: Heather MacLeod | B57: 2022-07-14 | C57: 12:02:16 | E57: Contaminants:$D$38 | G57: 2e-09 | I57: Contaminants_Free_Water_Diffusion_Coefficient Contaminants_Species1
A59: Heather MacLeod | B59: 2022-07-14 | C59: 12:02:20 | E59: Contaminants:$E$38 | G59: 1e-09 | I59: Contaminants_Free_Water_Diffusion_Coefficient Contaminants_Species2
A61: Heather MacLeod | B61: 2022-07-14 | C61: 12:02:25 | E61: Contaminants:$F$38 | G61: 6.64e-10 | I61: Contaminants_Free_Water_Diffusion_Coefficient Contaminants_Species3
A63: Heather MacLeod | B63: 2022-07-14 | C63: 12:02:29 | E63: Contaminants:$G$38 | G63: 6.9e-10 | I63: Contaminants_Free_Water_Diffusion_Coefficient Contaminants_Species4
A65: Heather MacLeod | B65: 2022-07-14 | C65: 12:05:36 | E65: Hydrogeology:$C$5 | G65: 3.5 | I65: Hydrogeology_Unit_Thickness Sst_Unsaturated
A67: Heather MacLeod | B67: 2022-07-14 | C67: 12:07:03 | E67: Hydrogeology:$D$5 | G67: 10 | I67: Hydrogeology_Unit_Thickness Sst_Saturated
A69: Heather MacLeod | B69: 2022-07-14 | C69: 12:10:12 | E69: Hydrogeology:$C$19 | G69: 0.00014 | H69: 1 | I69: Formula59
A71: Heather MacLeod | B71: 2022-07-14 | C71: 12:10:16 | E71: Hydrogeology:$D$19 | G71: 0.00014 | H71: 1 | I71: Formula60
A73: Heather MacLeod | B73: 2022-07-14 | C73: 12:10:56 | E73: Hydrogeology:$C$33 | G73: 0.02 | I73: Hydrogeology_Hydraulic_Gradient Sst_Unsaturated
A75: Heather MacLeod | B75: 2022-07-14 | C75: 12:11:00 | E75: Hydrogeology:$D$33 | G75: 0.02 | I75: Hydrogeology_Hydraulic_Gradient Sst_Saturated
A77: Heather MacLeod | B77: 2022-07-14 | C77: 12:11:09 | E77: Hydrogeology:$C$40 | G77: 26.9 | I77: Hydrogeology_Porosity Sst_Unsaturated
A79: Heather MacLeod | B79: 2022-07-14 | C79: 12:11:13 | E79: Hydrogeology:$D$40 | G79: 26.9 | I79: Hydrogeology_Porosity Sst_Saturated
A81: Heather MacLeod | B81: 2022-07-14 | C81: 12:11:52 | E81: Hydrogeology:$C$54 | G81: 5 | I81: Hydrogeology_Tortuosity Sst_Unsaturated
A83: Heather MacLeod | B83: 2022-07-14 | C83: 12:11:54 | E83: Hydrogeology:$D$54 | G83: 5 | I83: Hydrogeology_Tortuosity Sst_Saturated
A85: Heather MacLeod | B85: 2022-07-14 | C85: 12:14:03 | E85: Attenuation:$C$7 | G85: 2200 | I85: Attenuation_Dry_bulk_density Attenuation_Sst_Unsaturated
A87: Heather MacLeod | B87: 2022-07-14 | C87: 12:14:06 | E87: Attenuation:$D$7 | G87: 2200 | I87: Attenuation_Dry_bulk_density Attenuation_Sst_Saturated
A89: Heather MacLeod | B89: 2022-07-14 | C89: 12:15:03 | E89: Attenuation:$C$14 | G89: 0.001 | I89: Attenuation_Fraction_organic_carbon Attenuation_Sst_Unsaturated
A91: Heather MacLeod | B91: 2022-07-14 | C91: 12:15:07 | E91: Attenuation:$D$14 | G91: 0.001 | I91: Attenuation_Fraction_organic_carbon Attenuation_Sst_Saturated
A93: Heather MacLeod | B93: 2022-07-14 | C93: 12:18:06 | E93: Attenuation:$C$26 | G93: 450 | H93: 0 | I93: Formula91
A95: Heather MacLeod | B95: 2022-07-14 | C95: 12:18:54 | E95: Attenuation:$D$26 | G95: 450 | H95: 0 | I95: Formula92
A97: Heather MacLeod | B97: 2022-07-14 | C97: 12:27:36 | E97: Attenuation:$C$56 | G97: 220 | H97: 0 | I97: Formula140
A99: Heather MacLeod | B99: 2022-07-14 | C99: 12:27:39 | E99: Attenuation:$D$56 | G99: 220 | H99: 0 | I99: Formula141
A101: Heather MacLeod | B101: 2022-07-14 | C101: 12:28:13 | E101: Attenuation:$C$100 | G101: 365 | H101: No Decay | I101: Attenuation_Half_Life_Species_3 Attenuation_Sst_Unsaturated
A103: Heather MacLeod | B103: 2022-07-14 | C103: 12:28:14 | E103: Attenuation:$D$100 | G103: 365 | H103: No Decay | I103: Attenuation_Half_Life_Species_3 Attenuation_Sst_Saturated
A105: Heather MacLeod | B105: 2022-07-14 | C105: 12:28:37 | E105: Attenuation:$C$130 | G105: 830 | H105: No Decay | I105: Attenuation_Half_Life_Species_4 Attenuation_Sst_Unsaturated
A107: Heather MacLeod | B107: 2022-07-14 | C107: 12:28:39 | E107: Attenuation:$D$130 | G107: 830 | H107: No Decay | I107: Attenuation_Half_Life_Species_4 Attenuation_Sst_Saturated
A109: Heather MacLeod | B109: 2022-07-14 | C109: 12:34:17 | E109: Pathways:$I$7 | G109: MRV | H109: Not Specified | I109: Path1_Standards Section4
A111: Heather MacLeod | B111: 2022-07-14 | C111: 12:34:19 | E111: Pathways:$I$20 | G111: MRV | H111: Not Specified | I111: Path2_Standards Section4
A113: Heather MacLeod | B113: 2022-07-14 | C113: 12:35:09 | E113: Pathways:$C$10 | G113: 0.0005817953457 | I113: Path1_Param3 Section1
A115: Heather MacLeod | B115: 2022-07-14 | C115: 12:35:16 | E115: Pathways:$C$11 | G115: 0 | I115: Path1_Param4 Section1
A117: Heather MacLeod | B117: 2022-07-14 | C117: 12:35:23 | E117: Pathways:$C$10 | G117: 0.0005817953457 | H117: 0.0005817953457 | I117: Path1_Param3 Section1
A119: Heather MacLeod | B119: 2022-07-14 | C119: 12:35:25 | E119: Pathways:$C$11 | G119: 0.0005817953457 | H119: 0 | I119: Path1_Param4 Section1
A121: Heather MacLeod | B121: 2022-07-14 | C121: 12:35:33 | E121: Pathways:$C$23 | G121: 0.0005817953457 | I121: Path2_Param3 Section1
A123: Heather MacLeod | B123: 2022-07-14 | C123: 12:35:36 | E123: Pathways:$C$24 | G123: 0.0005817953457 | I123: Path2_Param4 Section1
A125: Heather MacLeod | B125: 2022-07-14 | C125: 12:36:06 | E125: Pathways:$E$6 | G125: ADRD (1D) + Dilution | H125: No Processes | I125: Path1_Process Section2
A127: Heather MacLeod | B127: 2022-07-14 | C127: 12:36:36 | E127: Hydrogeology:$C$33 | G127: 1 | I127: Hydrogeology_Hydraulic_Gradient Sst_Unsaturated
A129: Heather MacLeod | B129: 2022-07-14 | C129: 12:45:48 | E129: Pathways:$E$10 | G129: 3.5 | I129: Path1_Param3 Section2
A131: Heather MacLeod | B131: 2022-07-14 | C131: 12:46:38 | E131: Pathways:$E$9 | G131: 0.35 | I131: Path1_Param2 Section2
A133: Heather MacLeod | B133: 2022-07-14 | C133: 12:46:46 | E133: Pathways:$G$6 | G133: ADRD (1D) + Dilution | H133: No Processes | I133: Path1_Process Section3
A135: Heather MacLeod | B135: 2022-07-14 | C135: 12:47:32 | E135: Pathways:$G$10 | G135: 103.5 | I135: Path1_Param3 Section3
A137: Heather MacLeod | B137: 2022-07-14 | C137: 12:47:45 | E137: Pathways:$G$11 | G137: 10 | I137: Path1_Param4 Section3
A139: Heather MacLeod | B139: 2022-07-14 | C139: 12:47:56 | E139: Pathways:$G$12 | G139: 246 | I139: Path1_Param5 Section3
A141: Heather MacLeod | B141: 2022-07-14 | C141: 12:48:04 | E141: Pathways:$G$9 | G141: 10.35 | I141: Path1_Param2 Section3
A143: Heather MacLeod | B143: 2022-07-14 | C143: 12:48:48 | E143: Pathways:$E$19 | G143: ADRD (1D) + Dilution | H143: No Processes | I143: Path2_Process Section2
A145: Heather MacLeod | B145: 2022-07-14 | C145: 12:48:50 | E145: Pathways:$G$19 | G145: ADRD (1D) + Dilution | H145: No Processes | I145: Path2_Process Section3
A147: Heather MacLeod | B147: 2022-07-14 | C147: 12:48:55 | E147: Pathways:$E$21 | G147: 5.204460967e-06 | H147: 5.204460967e-06 | I147: Formula498
A149: Heather MacLeod | B149: 2022-07-14 | C149: 12:48:55 | E149: Pathways:$E$22 | G149: 0.35 | H149: 5.204460967e-06 | I149: Path2_Param2 Section2
A151: Heather MacLeod | B151: 2022-07-14 | C151: 12:48:55 | E151: Pathways:$E$23 | G151: 0 | H151: 5.204460967e-06 | I151: Path2_Param3 Section2
A153: Heather MacLeod | B153: 2022-07-14 | C153: 12:49:01 | E153: Pathways:$G$22 | G153: 10.35 | I153: Path2_Param2 Section3
A155: Heather MacLeod | B155: 2022-07-14 | C155: 12:49:01 | E155: Pathways:$G$23 | G155: 103.5 | I155: Path2_Param3 Section3
A157: Heather MacLeod | B157: 2022-07-14 | C157: 12:49:01 | E157: Pathways:$G$24 | G157: 0 | I157: Path2_Param4 Section3
A159: Heather MacLeod | B159: 2022-07-14 | C159: 12:49:01 | E159: Pathways:$G$25 | G159: 246 | I159: Path2_Param5 Section3
A161: Heather MacLeod | B161: 2022-07-14 | C161: 12:49:14 | E161: Pathways:$E$10 | G161: 3.5 | H161: 3.5 | I161: Path1_Param3 Section2
A163: Heather MacLeod | B163: 2022-07-14 | C163: 12:49:51 | E163: Pathways:$E$23 | G163: 3.5 | I163: Path2_Param3 Section2
A165: Heather MacLeod | B165: 2022-07-14 | C165: 12:50:05 | E165: Pathways:$G$23 | G165: 103.5 | I165: Path2_Param3 Section3
A167: Heather MacLeod | B167: 2022-07-14 | C167: 12:50:11 | E167: Pathways:$G$24 | G167: 10 | I167: Path2_Param4 Section3
A169: Heather MacLeod | B169: 2022-07-14 | C169: 12:50:17 | E169: Pathways:$G$25 | G169: 246 | I169: Path2_Param5 Section3
A171: Heather MacLeod | B171: 2022-07-14 | C171: 12:50:23 | E171: Pathways:$G$22 | G171: 10.35 | I171: Path2_Param2 Section3
A173: Heather MacLeod | B173: 2022-07-14 | C173: 12:50:28 | E173: Pathways:$E$22 | G173: 0.35 | I173: Path2_Param2 Section2
A175: Heather MacLeod | B175: 2022-07-14 | C175: 12:50:55 | E175: Pathways:$G$10 | G175: 0 | H175: 103.5 | I175: Path1_Param3 Section3
A178: Saved 19/07/2022: 15:04:34 Level Number: 5
A180: BREAKTHROUGH RESULTS
A182: Advanced
A183: Pollutant Linkage: Infill, Sst Unsaturated, Sst Saturated, Principal Aquifer | K183: Pollutant Linkage: Infill, Sst Unsaturated, Sst Saturated, Principal Aquifer at Site Boundary
A184: Concentrations in mg/L in Principal Aquifer | K184: Concentrations in mg/L in Principal Aquifer at Site Boundary
A186: Compared with MRV target concentration in mg/L | K186: Compared with MRV target concentration in mg/L
B187: 1e-05 | D187: 0.0002 | F187: 0.001 | H187: 5e-08 | L187: 1e-05 | N187: 0.0002 | P187: 0.001 | R187: 5e-08
B189: Species1 | D189: Species2 | F189: Species3 | H189: Species4 | L189: Species1 | N189: Species2 | P189: Species3 | R189: Species4
A190: Time(years) | B190: Hg | C190: Time(years) | D190: Pb | E190: Time(years) | F190: Benzene | G190: Time(years) | H190: BaP | K190: Time(years) | L190: Hg | M190: Time(years) | N190: Pb | O190: Time(years) | P190: Benzene | Q190: Time(years) | R190: BaP
A191: 1 | C191: 1 | E191: 1 | G191: 1 | K191: 1 | M191: 1 | O191: 1 | Q191: 1
A192: 2 | C192: 2 | E192: 2 | G192: 2 | K192: 2 | M192: 2 | O192: 2 | Q192: 2
A193: 5 | C193: 5 | E193: 5 | G193: 5 | K193: 5 | M193: 5 | O193: 5 | Q193: 5
A194: 10 | C194: 10 | E194: 10 | G194: 10 | K194: 10 | M194: 10 | O194: 10 | Q194: 10
A195: 20 | C195: 20 | E195: 20 | G195: 20 | K195: 20 | M195: 20 | O195: 20 | Q195: 20
A196: 30 | C196: 30 | E196: 30 | G196: 30 | K196: 30 | M196: 30 | O196: 30 | Q196: 30
A197: 40 | C197: 40 | E197: 40 | G197: 40 | K197: 40 | M197: 40 | O197: 40 | Q197: 40
A198: 50 | C198: 50 | E198: 50 | G198: 50 | K198: 50 | M198: 50 | O198: 50 | Q198: 50
A199: 60 | C199: 60 | E199: 60 | G199: 60 | K199: 60 | M199: 60 | O199: 60 | Q199: 60
A200: 70 | C200: 70 | E200: 70 | G200: 70 | K200: 70 | M200: 70 | O200: 70 | Q200: 70
A201: 80 | C201: 80 | E201: 80 | G201: 80 | K201: 80 | M201: 80 | O201: 80 | Q201: 80
A202: 90 | C202: 90 | E202: 90 | G202: 90 | K202: 90 | M202: 90 | O202: 90 | Q202: 90
A203: 100 | C203: 100 | E203: 100 | G203: 100 | K203: 100 | M203: 100 | O203: 100 | Q203: 100
A204: 110 | C204: 110 | E204: 110 | G204: 110 | K204: 110 | M204: 110 | O204: 110 | Q204: 110
A205: 120 | C205: 120 | E205: 120 | G205: 120 | K205: 120 | M205: 120 | O205: 120 | Q205: 120
A206: 130 | C206: 130 | E206: 130 | G206: 130 | K206: 130 | M206: 130 | O206: 130 | Q206: 130
A207: 140 | C207: 140 | E207: 140 | G207: 140 | K207: 140 | M207: 140 | O207: 140 | Q207: 140
A208: 150 | C208: 150 | E208: 150 | G208: 150 | K208: 150 | M208: 150 | O208: 150 | Q208: 150
A209: 160 | C209: 160 | E209: 160 | G209: 160 | K209: 160 | M209: 160 | O209: 160 | Q209: 160
A210: 170 | C210: 170 | E210: 170 | G210: 170 | K210: 170 | M210: 170 | O210: 170 | Q210: 170
A213: Pollutant Linkage: Infill, Sst Unsaturated, Sst Saturated, Principal Aquifer | K213: Pollutant Linkage: Infill, Sst Unsaturated, Sst Saturated, Principal Aquifer at Site Boundary
A214: Remedial Target Concentrations in mg/L in Infill | K214: Remedial Target Concentrations in mg/L in Infill
B216: Species1 | D216: Species2 | F216: Species3 | H216: Species4 | L216: Species1 | N216: Species2 | P216: Species3 | R216: Species4
A217: Time(years) | B217: Hg | C217: Time(years) | D217: Pb | E217: Time(years) | F217: Benzene | G217: Time(years) | H217: BaP | K217: Time(years) | L217: Hg | M217: Time(years) | N217: Pb | O217: Time(years) | P217: Benzene | Q217: Time(years) | R217: BaP
A218: 1 | B218: 0 | C218: 1 | D218: 0 | E218: 1 | F218: 0 | G218: 1 | H218: 0 | K218: 1 | L218: 0 | M218: 1 | N218: 0 | O218: 1 | P218: 0 | Q218: 1 | R218: 0
A219: 2 | B219: 0 | C219: 2 | D219: 0 | E219: 2 | F219: 0 | G219: 2 | H219: 0 | K219: 2 | L219: 0 | M219: 2 | N219: 0 | O219: 2 | P219: 0 | Q219: 2 | R219: 0
A220: 5 | B220: 0 | C220: 5 | D220: 0 | E220: 5 | F220: 0 | G220: 5 | H220: 0 | K220: 5 | L220: 0 | M220: 5 | N220: 0 | O220: 5 | P220: 0 | Q220: 5 | R220: 0
A221: 10 | B221: 0 | C221: 10 | D221: 0 | E221: 10 | F221: 0 | G221: 10 | H221: 0 | K221: 10 | L221: 0 | M221: 10 | N221: 0 | O221: 10 | P221: 0 | Q221: 10 | R221: 0
A222: 20 | B222: 0 | C222: 20 | D222: 0 | E222: 20 | F222: 0 | G222: 20 | H222: 0 | K222: 20 | L222: 0 | M222: 20 | N222: 0 | O222: 20 | P222: 0 | Q222: 20 | R222: 0
A223: 30 | B223: 0 | C223: 30 | D223: 0 | E223: 30 | F223: 0 | G223: 30 | H223: 0 | K223: 30 | L223: 0 | M223: 30 | N223: 0 | O223: 30 | P223: 0 | Q223: 30 | R223: 0
A224: 40 | B224: 0 | C224: 40 | D224: 0 | E224: 40 | F224: 0 | G224: 40 | H224: 0 | K224: 40 | L224: 0 | M224: 40 | N224: 0 | O224: 40 | P224: 0 | Q224: 40 | R224: 0
A225: 50 | B225: 0 | C225: 50 | D225: 0 | E225: 50 | F225: 0 | G225: 50 | H225: 0 | K225: 50 | L225: 0 | M225: 50 | N225: 0 | O225: 50 | P225: 0 | Q225: 50 | R225: 0
A226: 60 | B226: 0 | C226: 60 | D226: 0 | E226: 60 | F226: 0 | G226: 60 | H226: 0 | K226: 60 | L226: 0 | M226: 60 | N226: 0 | O226: 60 | P226: 0 | Q226: 60 | R226: 0
A227: 70 | B227: 0 | C227: 70 | D227: 0 | E227: 70 | F227: 0 | G227: 70 | H227: 0 | K227: 70 | L227: 0 | M227: 70 | N227: 0 | O227: 70 | P227: 0 | Q227: 70 | R227: 0
A228: 80 | B228: 0 | C228: 80 | D228: 0 | E228: 80 | F228: 0 | G228: 80 | H228: 0 | K228: 80 | L228: 0 | M228: 80 | N228: 0 | O228: 80 | P228: 0 | Q228: 80 | R228: 0
A229: 90 | B229: 0 | C229: 90 | D229: 0 | E229: 90 | F229: 0 | G229: 90 | H229: 0 | K229: 90 | L229: 0 | M229: 90 | N229: 0 | O229: 90 | P229: 0 | Q229: 90 | R229: 0
A230: 100 | B230: 0 | C230: 100 | D230: 0 | E230: 100 | F230: 0 | G230: 100 | H230: 0 | K230: 100 | L230: 0 | M230: 100 | N230: 0 | O230: 100 | P230: 0 | Q230: 100 | R230: 0
A231: 110 | B231: 0 | C231: 110 | D231: 0 | E231: 110 | F231: 0 | G231: 110 | H231: 0 | K231: 110 | L231: 0 | M231: 110 | N231: 0 | O231: 110 | P231: 0 | Q231: 110 | R231: 0
A232: 120 | B232: 0 | C232: 120 | D232: 0 | E232: 120 | F232: 0 | G232: 120 | H232: 0 | K232: 120 | L232: 0 | M232: 120 | N232: 0 | O232: 120 | P232: 0 | Q232: 120 | R232: 0
A233: 130 | B233: 0 | C233: 130 | D233: 0 | E233: 130 | F233: 0 | G233: 130 | H233: 0 | K233: 130 | L233: 0 | M233: 130 | N233: 0 | O233: 130 | P233: 0 | Q233: 130 | R233: 0
A234: 140 | B234: 0 | C234: 140 | D234: 0 | E234: 140 | F234: 0 | G234: 140 | H234: 0 | K234: 140 | L234: 0 | M234: 140 | N234: 0 | O234: 140 | P234: 0 | Q234: 140 | R234: 0
A235: 150 | B235: 0 | C235: 150 | D235: 0 | E235: 150 | F235: 0 | G235: 150 | H235: 0 | K235: 150 | L235: 0 | M235: 150 | N235: 0 | O235: 150 | P235: 0 | Q235: 150 | R235: 0
A236: 160 | B236: 0 | C236: 160 | D236: 0 | E236: 160 | F236: 0 | G236: 160 | H236: 0 | K236: 160 | L236: 0 | M236: 160 | N236: 0 | O236: 160 | P236: 0 | Q236: 160 | R236: 0
A237: 170 | B237: 0 | C237: 170 | D237: 0 | E237: 170 | F237: 0 | G237: 170 | H237: 0 | K237: 170 | L237: 0 | M237: 170 | N237: 0 | O237: 170 | P237: 0 | Q237: 170 | R237: 0
A239: Compared with source concentrations in mg/L | K239: Compared with source concentrations in mg/L
B240: 0 | D240: 0 | F240: 0 | H240: 0 | L240: 0 | N240: 0 | P240: 0 | R240: 0
A243: Pollutant Linkage: Infill, Sst Unsaturated, Sst Saturated, Principal Aquifer | K243: Pollutant Linkage: Infill, Sst Unsaturated, Sst Saturated, Principal Aquifer at Site Boundary
A244: Dilution Factor | K244: Dilution Factor
B246: 12.83921469 | C246: for all species and timeslices | L246: 12.83921469 | M246: for all species and timeslices
A249: Pollutant Linkage: Infill, Sst Unsaturated, Sst Saturated, Principal Aquifer | K249: Pollutant Linkage: Infill, Sst Unsaturated, Sst Saturated, Principal Aquifer at Site Boundary
A250: Attenuation Factor | K250: Attenuation Factor
B252: Species1 | D252: Species2 | F252: Species3 | H252: Species4 | L252: Species1 | N252: Species2 | P252: Species3 | R252: Species4
A253: Time(years) | B253: Hg | C253: Time(years) | D253: Pb | E253: Time(years) | F253: Benzene | G253: Time(years) | H253: BaP | K253: Time(years) | L253: Hg | M253: Time(years) | N253: Pb | O253: Time(years) | P253: Benzene | Q253: Time(years) | R253: BaP
A254: 1 | C254: 1 | D254: 0 | E254: 1 | G254: 1 | H254: 0 | K254: 1 | M254: 1 | N254: 0 | O254: 1 | Q254: 1 | R254: 0
A255: 2 | C255: 2 | D255: 0 | E255: 2 | G255: 2 | H255: 0 | K255: 2 | M255: 2 | N255: 0 | O255: 2 | Q255: 2 | R255: 0
A256: 5 | C256: 5 | D256: 0 | E256: 5 | G256: 5 | H256: 0 | K256: 5 | M256: 5 | N256: 0 | O256: 5 | Q256: 5 | R256: 0
A257: 10 | C257: 10 | D257: 0 | E257: 10 | G257: 10 | H257: 0 | K257: 10 | M257: 10 | N257: 0 | O257: 10 | Q257: 10 | R257: 0
A258: 20 | C258: 20 | D258: 0 | E258: 20 | G258: 20 | H258: 0 | K258: 20 | M258: 20 | N258: 0 | O258: 20 | Q258: 20 | R258: 0
A259: 30 | C259: 30 | D259: 0 | E259: 30 | G259: 30 | H259: 0 | K259: 30 | M259: 30 | N259: 0 | O259: 30 | Q259: 30 | R259: 0
A260: 40 | C260: 40 | D260: 0 | E260: 40 | G260: 40 | H260: 0 | K260: 40 | M260: 40 | N260: 0 | O260: 40 | Q260: 40 | R260: 0
A261: 50 | C261: 50 | D261: 0 | E261: 50 | G261: 50 | H261: 0 | K261: 50 | M261: 50 | N261: 0 | O261: 50 | Q261: 50 | R261: 0
A262: 60 | C262: 60 | D262: 0 | E262: 60 | G262: 60 | H262: 0 | K262: 60 | M262: 60 | N262: 0 | O262: 60 | Q262: 60 | R262: 0
A263: 70 | C263: 70 | D263: 0 | E263: 70 | G263: 70 | H263: 0 | K263: 70 | M263: 70 | N263: 0 | O263: 70 | Q263: 70 | R263: 0
A264: 80 | C264: 80 | D264: 0 | E264: 80 | G264: 80 | H264: 0 | K264: 80 | M264: 80 | N264: 0 | O264: 80 | Q264: 80 | R264: 0
A265: 90 | C265: 90 | D265: 0 | E265: 90 | G265: 90 | H265: 0 | K265: 90 | M265: 90 | N265: 0 | O265: 90 | Q265: 90 | R265: 0
A266: 100 | C266: 100 | D266: 0 | E266: 100 | G266: 100 | H266: 0 | K266: 100 | M266: 100 | N266: 0 | O266: 100 | Q266: 100 | R266: 0
A267: 110 | C267: 110 | D267: 0 | E267: 110 | G267: 110 | H267: 0 | K267: 110 | M267: 110 | N267: 0 | O267: 110 | Q267: 110 | R267: 0
A268: 120 | C268: 120 | D268: 0 | E268: 120 | G268: 120 | H268: 0 | K268: 120 | M268: 120 | N268: 0 | O268: 120 | Q268: 120 | R268: 0
A269: 130 | C269: 130 | D269: 0 | E269: 130 | G269: 130 | H269: 0 | K269: 130 | M269: 130 | N269: 0 | O269: 130 | Q269: 130 | R269: 0
A270: 140 | C270: 140 | D270: 0 | E270: 140 | G270: 140 | H270: 0 | K270: 140 | M270: 140 | N270: 0 | O270: 140 | Q270: 140 | R270: 0
A271: 150 | C271: 150 | D271: 0 | E271: 150 | G271: 150 | H271: 0 | K271: 150 | M271: 150 | N271: 0 | O271: 150 | Q271: 150 | R271: 0
A272: 160 | C272: 160 | D272: 0 | E272: 160 | G272: 160 | H272: 0 | K272: 160 | M272: 160 | N272: 0 | O272: 160 | Q272: 160 | R272: 0
A273: 170 | C273: 170 | D273: 0 | E273: 170 | G273: 170 | H273: 0 | K273: 170 | M273: 170 | N273: 0 | O273: 170 | Q273: 170 | R273: 0
A276: Saved 19/07/2022: 15:24:36 Level Number: 5
A278: BREAKTHROUGH RESULTS
A280: Advanced
A281: Pollutant Linkage: Infill, Sst Unsaturated, Sst Saturated, Principal Aquifer | K281: Pollutant Linkage: Infill, Sst Unsaturated, Sst Saturated, Principal Aquifer at Site Boundary
A282: Concentrations in mg/L in Principal Aquifer | K282: Concentrations in mg/L in Principal Aquifer at Site Boundary
A284: Compared with MRV target concentration in mg/L | K284: Compared with MRV target concentration in mg/L
B285: 1e-05 | D285: 0.0002 | F285: 0.001 | H285: 5e-08 | L285: 1e-05 | N285: 0.0002 | P285: 0.001 | R285: 5e-08
B287: Species1 | D287: Species2 | F287: Species3 | H287: Species4 | L287: Species1 | N287: Species2 | P287: Species3 | R287: Species4
A288: Time(years) | B288: Hg | C288: Time(years) | D288: Pb | E288: Time(years) | F288: Benzene | G288: Time(years) | H288: BaP | K288: Time(years) | L288: Hg | M288: Time(years) | N288: Pb | O288: Time(years) | P288: Benzene | Q288: Time(years) | R288: BaP
A289: 1 | B289: 0.000587115424 | C289: 1 | D289: 0.03649344596 | E289: 1 | F289: 0.4252423561 | G289: 1 | H289: 0.4344838465 | K289: 1 | L289: 0 | M289: 1 | N289: 0 | O289: 1 | P289: 0.3141296855 | Q289: 1 | R289: 0
A290: 2 | B290: 0.0006888878451 | C290: 2 | D290: 0.03344966292 | E290: 2 | F290: 0.3870311099 | G290: 2 | H290: 2.718520908 | K290: 2 | L290: 0 | M290: 2 | N290: 0 | O290: 2 | P290: 0.291476891 | Q290: 2 | R290: 0
A291: 5 | B291: 0.0005239950036 | C291: 5 | D291: 0.02521870003 | E291: 5 | F291: 0.2917923854 | G291: 5 | H291: 3.203866253 | K291: 5 | L291: 0 | M291: 5 | N291: 0 | O291: 5 | P291: 0.2197603829 | Q291: 5 | R291: 0
A292: 10 | B292: 0.0003272458231 | C292: 10 | D292: 0.01574959876 | E292: 10 | F292: 0.1822303679 | G292: 10 | H292: 2.010004643 | K292: 10 | L292: 0 | M292: 10 | N292: 1.729231454e-30 | O292: 10 | P292: 0.1372448958 | Q292: 10 | R292: 0
A293: 20 | B293: 0.0001276343903 | C293: 20 | D293: 0.006142753469 | E293: 20 | F293: 0.07107458688 | G293: 20 | H293: 0.783955742 | K293: 20 | L293: 1.655712482e-32 | M293: 20 | N293: 0 | O293: 20 | P293: 0.05352908186 | Q293: 20 | R293: 0
A294: 30 | B294: 4.978073395e-05 | C294: 30 | D294: 0.002395833693 | E294: 30 | F294: 0.02772093831 | G294: 30 | H294: 0.3057631508 | K294: 30 | L294: 0 | M294: 30 | N294: 1.081131412e-19 | O294: 30 | P294: 0.02087773483 | Q294: 30 | R294: 0
A295: 40 | B295: 1.941578083e-05 | C295: 40 | D295: 0.0009344374289 | E295: 40 | F295: 0.01081188665 | G295: 40 | H295: 0.1192555879 | K295: 40 | L295: 0 | M295: 40 | N295: 1.206828262e-16 | O295: 40 | P295: 0.008142859393 | Q295: 40 | R295: 0
A296: 50 | B296: 7.572658455e-06 | C296: 50 | D296: 0.0003644548388 | E296: 50 | F296: 0.00421691629 | G296: 50 | H296: 0.04651278065 | K296: 50 | L296: 1.177465927e-23 | M296: 50 | N296: 1.635061756e-13 | O296: 50 | P296: 0.003175926418 | Q296: 50 | R296: 0
A297: 60 | B297: 2.953532343e-06 | C297: 60 | D297: 0.00014214679 | E297: 60 | F297: 0.001644706165 | G297: 60 | H297: 0.01814119054 | K297: 60 | L297: 1.473702697e-21 | M297: 60 | N297: 1.954633761e-11 | O297: 60 | P297: 0.001238693248 | Q297: 60 | R297: 4.31692406e-40
A298: 70 | B298: 1.151952878e-06 | C298: 70 | D298: 5.544086423e-05 | E298: 70 | F298: 0.0006414772657 | G298: 70 | H298: 0.007075530731 | K298: 70 | L298: 0 | M298: 70 | N298: 5.785572359e-10 | O298: 70 | P298: 0.0004831218838 | Q298: 70 | R298: 1.116404471e-39
A299: 80 | B299: 4.492899716e-07 | C299: 80 | D299: 2.162329688e-05 | E299: 80 | F299: 0.0002501918911 | G299: 80 | H299: 0.002759634562 | K299: 80 | L299: 9.968024522e-19 | M299: 80 | N299: 7.154885411e-09 | O299: 80 | P299: 0.0001884293888 | Q299: 80 | R299: 0
A300: 90 | B300: 1.752331517e-07 | C300: 90 | D300: 8.43356673e-06 | E300: 90 | F300: 9.75804262e-05 | G300: 90 | H300: 0.001076322151 | K300: 90 | L300: 5.792812286e-17 | M300: 90 | N300: 4.943176309e-08 | O300: 90 | P300: 7.349165451e-05 | Q300: 90 | R300: 0
A301: 100 | B301: 6.834386998e-08 | C301: 100 | D301: 3.289230095e-06 | E301: 100 | F301: 3.805799965e-05 | G301: 100 | H301: 0.0004197861201 | K301: 100 | L301: 1.509238672e-15 | M301: 100 | N301: 2.271444631e-07 | O301: 100 | P301: 2.86629579e-05 | Q301: 100 | R301: 0
A302: 110 | B302: 2.66542839e-08 | C302: 110 | D302: 1.282806385e-06 | E302: 110 | F302: 1.484272126e-05 | G302: 110 | H302: 0.0001637197031 | K302: 110 | L302: 2.144513211e-14 | M302: 110 | N302: 7.758021113e-07 | O302: 110 | P302: 1.117861162e-05 | Q302: 110 | R302: 2.193813144e-40
A303: 120 | B303: 1.03942811e-08 | C303: 120 | D303: 5.002503446e-07 | E303: 120 | F303: 5.788174983e-06 | G303: 120 | H303: 6.384695347e-05 | K303: 120 | L303: 1.933855651e-13 | M303: 120 | N303: 2.12118652e-06 | O303: 120 | P303: 4.359274029e-06 | Q303: 120 | R303: 0
A304: 130 | B304: 4.052479764e-09 | C304: 130 | D304: 1.950346837e-07 | E304: 130 | F304: 2.256682408e-06 | G304: 130 | H304: 2.489386827e-05 | K304: 130 | L304: 1.229537585e-12 | M304: 130 | N304: 4.888078929e-06 | O304: 130 | P304: 1.699566471e-06 | Q304: 130 | R304: 1.088233261e-40
A305: 140 | B305: 1.579037528e-09 | C305: 140 | D305: 7.599416366e-08 | E305: 140 | F305: 8.793268485e-07 | G305: 140 | H305: 9.701107417e-06 | K305: 140 | L305: 5.940906807e-12 | M305: 140 | N305: 9.849758458e-06 | O305: 140 | P305: 6.62225229e-07 | Q305: 140 | R305: 0
A306: 150 | B306: 6.143561868e-10 | C306: 150 | D306: 2.956670544e-08 | E306: 150 | F306: 3.421384771e-07 | G306: 150 | H306: 3.77549878e-06 | K306: 150 | L306: 2.304850808e-11 | M306: 150 | N306: 1.783170566e-05 | O306: 150 | P306: 2.576479067e-07 | Q306: 150 | R306: 1.821542539e-40
A307: 160 | B307: 2.381330383e-10 | C307: 160 | D307: 1.146024217e-08 | E307: 160 | F307: 1.326370681e-07 | G307: 160 | H307: 1.464373237e-06 | K307: 160 | L307: 7.482235968e-11 | M307: 160 | N307: 2.959836246e-05 | O307: 160 | P307: 9.986512023e-08 | Q307: 160 | R307: 2.7938552e-40
A308: 170 | B308: 9.142181024e-11 | C308: 170 | D308: 4.399753454e-09 | E308: 170 | F308: 5.094215246e-08 | G308: 170 | H308: 5.630190517e-07 | K308: 170 | L308: 2.09761714e-10 | M308: 170 | N308: 4.575182761e-05 | O308: 170 | P308: 3.833706293e-08 | Q308: 170 | R308: 2.815691101e-40
A311: Pollutant Linkage: Infill, Sst Unsaturated, Sst Saturated, Principal Aquifer | K311: Pollutant Linkage: Infill, Sst Unsaturated, Sst Saturated, Principal Aquifer at Site Boundary
... 2840 more rows

Sheet Principal Aquif (hidden)
A1: RECEPTOR: Principal Aquif
A3: Receptor Options
F5: No further dilution along pathway
F7: No data requirement
